Portfolio,Expense Area,Cost Centre,Expense Type,Account Code,Amount,Supplier Name,SupplierId,Pay Date,Transaction No.
Resources & Corporate Governance ,Head of Customer and Information Services,CIS00,New Equipment,0300,43.12,Arco Limited,100015,11/04/2013,10182083
Resources & Corporate Governance ,Toilet Cleaning,WBC01,Materials,0303,449.45,Arco Limited,100015,11/04/2013,10182083
Resources & Corporate Governance ,Grounds Maintenance,WGM00,Materials,0303,7.17,Arco Limited,100015,11/04/2013,10182083
Resources & Corporate Governance,Handy man,WHM00,Materials,0303,7.17,Arco Limited,100015,11/04/2013,10182083
Resources & Corporate Governance ,Garage Internal,WVR01,Materials,0303,244.80,Arco Limited,100015,11/04/2013,10182083
Resources & Corporate Governance ,Domestic Waste Collection,WWC00,Materials,0303,36.40,Arco Limited,100015,11/04/2013,10182083
Sustainable Environment,Regulatory Services,REG00,Personal Protective Clothing,0340,29.95,Arco Limited,100015,11/04/2013,10182083
Resources & Corporate Governance,Handy man,WHM00,Personal Protective Clothing,0340,20.01,Arco Limited,100015,11/04/2013,10182083
Resources & Corporate Governance ,Toilet Cleaning,WBC01,Personal Protective Clothing,0340,6.38,Arco Limited,100015,25/04/2013,10183783
Resources & Corporate Governance ,Grounds Maintenance,WGM00,Personal Protective Clothing,0340,66.99,Arco Limited,100015,25/04/2013,10183783
Resources & Corporate Governance ,Highways,WHG00,Personal Protective Clothing,0340,9.57,Arco Limited,100015,25/04/2013,10183783
Resources & Corporate Governance,Handy man,WHM00,Personal Protective Clothing,0340,357.26,Arco Limited,100015,25/04/2013,10183783
Resources & Corporate Governance ,Street Cleansing,WSC00,Personal Protective Clothing,0340,76.56,Arco Limited,100015,25/04/2013,10183783
Resources & Corporate Governance ,Garage Internal,WVR01,Personal Protective Clothing,0340,12.76,Arco Limited,100015,25/04/2013,10183783
Resources & Corporate Governance ,Domestic Waste Collection,WWC00,Personal Protective Clothing,0340,133.98,Arco Limited,100015,25/04/2013,10183783
Resources & Corporate Governance ,Trade Waste Collection,WWC01,Personal Protective Clothing,0340,12.76,Arco Limited,100015,25/04/2013,10183783
Resources & Corporate Governance ,Toilet Cleaning,WBC01,Materials,0303,31.61,Arco Limited,100015,25/04/2013,10183815
Resources & Corporate Governance ,Toilet Cleaning,WBC01,Personal Protective Clothing,0340,2.96,Arco Limited,100015,25/04/2013,10183815
Resources & Corporate Governance ,Grounds Maintenance,WGM00,Personal Protective Clothing,0340,31.19,Arco Limited,100015,25/04/2013,10183815
Resources & Corporate Governance ,Highways,WHG00,Personal Protective Clothing,0340,4.46,Arco Limited,100015,25/04/2013,10183815
Resources & Corporate Governance,Handy man,WHM00,Personal Protective Clothing,0340,294.80,Arco Limited,100015,25/04/2013,10183815
Resources & Corporate Governance ,Street Cleansing,WSC00,Personal Protective Clothing,0340,35.64,Arco Limited,100015,25/04/2013,10183815
Resources & Corporate Governance ,Garage Internal,WVR01,Personal Protective Clothing,0340,5.94,Arco Limited,100015,25/04/2013,10183815
Resources & Corporate Governance ,Domestic Waste Collection,WWC00,Personal Protective Clothing,0340,62.37,Arco Limited,100015,25/04/2013,10183815
Resources & Corporate Governance ,Trade Waste Collection,WWC01,Personal Protective Clothing,0340,5.94,Arco Limited,100015,25/04/2013,10183815
Resources & Corporate Governance,Handy man,WHM00,Materials,0303,156.86,Arco Limited,100015,25/04/2013,10183894
Resources & Corporate Governance ,Domestic Waste Collection,WWC00,Materials,0303,102.60,Arco Limited,100015,25/04/2013,10183894
Resources & Corporate Governance ,Toilet Cleaning,WBC01,Personal Protective Clothing,0340,3.64,Arco Limited,100015,25/04/2013,10183894
Resources & Corporate Governance ,Grounds Maintenance,WGM00,Personal Protective Clothing,0340,38.39,Arco Limited,100015,25/04/2013,10183894
Resources & Corporate Governance ,Highways,WHG00,Personal Protective Clothing,0340,5.49,Arco Limited,100015,25/04/2013,10183894
Resources & Corporate Governance,Handy man,WHM00,Personal Protective Clothing,0340,86.76,Arco Limited,100015,25/04/2013,10183894
Resources & Corporate Governance ,Street Cleansing,WSC00,Personal Protective Clothing,0340,43.88,Arco Limited,100015,25/04/2013,10183894
Resources & Corporate Governance ,Garage Internal,WVR01,Personal Protective Clothing,0340,7.32,Arco Limited,100015,25/04/2013,10183894
Resources & Corporate Governance ,Domestic Waste Collection,WWC00,Personal Protective Clothing,0340,76.78,Arco Limited,100015,25/04/2013,10183894
Resources & Corporate Governance ,Trade Waste Collection,WWC01,Personal Protective Clothing,0340,7.32,Arco Limited,100015,25/04/2013,10183894
Resources & Corporate Governance ,Toilet Cleaning,WBC01,Personal Protective Clothing,0340,18.52,Arco Limited,100015,25/04/2013,10183895
Resources & Corporate Governance ,Grounds Maintenance,WGM00,Personal Protective Clothing,0340,194.44,Arco Limited,100015,25/04/2013,10183895
Resources & Corporate Governance ,Highways,WHG00,Personal Protective Clothing,0340,27.78,Arco Limited,100015,25/04/2013,10183895
Resources & Corporate Governance ,Street Cleansing,WSC00,Personal Protective Clothing,0340,222.22,Arco Limited,100015,25/04/2013,10183895
Resources & Corporate Governance ,Garage Internal,WVR01,Personal Protective Clothing,0340,37.04,Arco Limited,100015,25/04/2013,10183895
Resources & Corporate Governance ,Domestic Waste Collection,WWC00,Personal Protective Clothing,0340,388.87,Arco Limited,100015,25/04/2013,10183895
Resources & Corporate Governance ,Trade Waste Collection,WWC01,Personal Protective Clothing,0340,37.01,Arco Limited,100015,25/04/2013,10183895
Housing Revenue Account ,Unplanned Maintenance and Repair,UMR00,R&M External Contractors,0100,442.13,AWM Electrical Contractors Ltd,100051,11/04/2013,10182843
Housing Revenue Account ,Unplanned Maintenance and Repair,UMR00,R&M External Contractors,0100,302.08,AWM Electrical Contractors Ltd,100051,18/04/2013,10183252
Capital Program ,Rewiring,HCE20,Capital Contract Payments,5000,1900.00,AWM Electrical Contractors Ltd,100051,18/04/2013,10183252
Housing Revenue Account ,Unplanned Maintenance and Repair,UMR00,R&M External Contractors,0100,4372.27,AWM Electrical Contractors Ltd,100051,18/04/2013,10183255
Capital Program ,Rewiring,HCE20,Capital Contract Payments,5000,1613.00,AWM Electrical Contractors Ltd,100051,18/04/2013,10183255
Housing Revenue Account ,Unplanned Maintenance and Repair,UMR00,R&M External Contractors,0100,3513.48,AWM Electrical Contractors Ltd,100051,18/04/2013,10183507
Housing Revenue Account ,Electrical Inspections,UMR04,R&M External Contractors,0100,513.24,AWM Electrical Contractors Ltd,100051,18/04/2013,10183507
Housing Revenue Account ,Unplanned Maintenance and Repair,UMR00,R&M External Contractors,0100,832.61,AWM Electrical Contractors Ltd,100051,25/04/2013,10183607
Housing Revenue Account ,Unplanned Maintenance and Repair,UMR00,R&M External Contractors,0100,5815.88,AWM Electrical Contractors Ltd,100051,25/04/2013,10183608
Resources & Corporate Governance ,General Administration,WAD00,Professional Subscriptions,0017,2021.00,APSE,100052,25/04/2013,10183745
Housing Revenue Account ,Unplanned Maintenance and Repair,UMR00,R&M External Contractors,0100,622.54,Andy Woods Landscapes,100078,11/04/2013,10182845
Housing Revenue Account ,Unplanned Maintenance and Repair,UMR00,R&M External Contractors,0100,855.85,Andy Woods Landscapes,100078,11/04/2013,10182846
Housing Revenue Account ,Unplanned Maintenance and Repair,UMR00,R&M External Contractors,0100,630.68,Andy Woods Landscapes,100078,11/04/2013,10183140
Resources & Corporate Governance ,IT Procurement,CMP00,IT Capital Expenditure,5025,1000.00,Albany Software Ltd,100084,11/04/2013,10182630
Capital Program ,Kitchen Modifications,HIK10,Capital Contract Payments,5000,6482.54,A C E Carpentry & Joinery Contractors Ltd,100085,11/04/2013,10182851
Economy Development & Culture,The Benn Hall,BHL00,Other Miscellaneous Expenses,0444,4234.65,DC Leisure Rugby,100140,18/04/2013,10183243
Economy Development & Culture,Car Parks General,CPK01,New Equipment,0300,2991.00,Cale Briparc Ltd,100158,11/04/2013,10182533
Economy Development & Culture,Decrim. of Car Parking on street parking,DPE02,R&M External Contractors,0100,510.00,Cale Briparc Ltd,100158,11/04/2013,10182962
Resources & Corporate Governance ,Council Tax and NNDR Collection,CTX01,External Contractor & Operator,0742,235.00,Bristow & Sutor,100159,04/04/2013,10182310
Resources & Corporate Governance ,Council Tax and NNDR Collection,CTX01,External Contractor & Operator,0742,42.50,Bristow & Sutor,100159,18/04/2013,10183506
Resources & Corporate Governance ,Council Tax and NNDR Collection,CTX01,External Contractor & Operator,0742,42.50,Bristow & Sutor,100159,25/04/2013,10183765
Resources & Corporate Governance ,WSU Depot,WDP00,Telephone Expenses,0371,472.71,British Telecommunications Plc,100161,04/04/2013,10182637
Resources & Corporate Governance ,Town Hall,OFF00,R&M External Contractors,0100,75.76,British Telecommunications Plc,100161,18/04/2013,10182957
Housing Revenue Account ,Control Centre (HRA),CCE00,New Equipment,0300,55.85,British Telecommunications Plc,100161,18/04/2013,10182957
Economy Development & Culture,Art Gallery and Museum,AGM00,Telephone Expenses,0371,209.98,British Telecommunications Plc,100161,18/04/2013,10182957
Resources & Corporate Governance ,Customer and Information Strategy,CIS10,Telephone Expenses,0371,1119.10,British Telecommunications Plc,100161,18/04/2013,10182957
Resources & Corporate Governance ,Civic Responsibilities,CIV00,Telephone Expenses,0371,43.21,British Telecommunications Plc,100161,18/04/2013,10182957
Economy Development & Culture,Car Parks General,CPK01,Telephone Expenses,0371,18.87,British Telecommunications Plc,100161,18/04/2013,10182957
Economy Development & Culture,Decrim. of Car Parking on street parking,DPE02,Telephone Expenses,0371,75.46,British Telecommunications Plc,100161,18/04/2013,10182957
Sustainable Inclusive Communities,Housing Benefit Administration,HBA00,Telephone Expenses,0371,37.89,British Telecommunications Plc,100161,18/04/2013,10182957
Resources & Corporate Governance ,Town Hall,OFF00,Telephone Expenses,0371,37.89,British Telecommunications Plc,100161,18/04/2013,10182957
Sustainable Environment ,Caldecott Park/Town Centre Area,PKS00,Telephone Expenses,0371,53.42,British Telecommunications Plc,100161,18/04/2013,10182957
Resources & Corporate Governance ,Central Telephone Service,TEL00,Telephone Expenses,0371,37.87,British Telecommunications Plc,100161,18/04/2013,10182957
Economy Development & Culture,Visitor Centre,VSC00,Telephone Expenses,0371,75.98,British Telecommunications Plc,100161,18/04/2013,10182957
Resources & Corporate Governance ,Council Tax and NNDR Collection,CTX01,Software Maintenance,0374,263.46,British Telecommunications Plc,100161,18/04/2013,10182957
Resources & Corporate Governance ,Grounds Maintenance,WGM00,Materials,0303,838.36,Burrow Hill Ltd,100167,11/04/2013,10182911
Sustainable Inclusive Communities,Woodside Park,TVR00,R&M External Contractors,0100,3382.00,Bt Redcare,100221,11/04/2013,10183058
Housing Revenue Account ,Unplanned Maintenance and Repair,UMR00,R&M External Contractors,0100,846.46,Bowen Builders,100241,11/04/2013,10182834
Housing Revenue Account ,Unplanned Maintenance and Repair,UMR00,R&M External Contractors,0100,1896.34,Bowen Builders,100241,11/04/2013,10182835
Housing Revenue Account ,Unplanned Maintenance and Repair,UMR00,R&M External Contractors,0100,1220.06,Bowen Builders,100241,11/04/2013,10183141
Resources & Corporate Governance,Corporate Property R&M,CPA01,R&M External Contractors,0100,439.70,Barron McCann Ltd,100248,04/04/2013,10182473
Housing Revenue Account ,Unplanned Maintenance and Repair,UMR00,R&M External Contractors,0100,1080.90,Barron McCann Ltd,100248,11/04/2013,10182856
Sustainable Environment ,Cemeteries General,CEM00,External Contractor & Operator,0742,874.00,Charles Watts Engineering Ltd,100302,04/04/2013,10182414
Sustainable Environment ,Cemeteries General,CEM00,External Contractor & Operator,0742,425.00,Charles Watts Engineering Ltd,100302,11/04/2013,10182797
Resources & Corporate Governance,Handy man,WHM00,External Contractor & Operator,0742,756.54,Cwikskip (Tailby Brack Ltd),100325,11/04/2013,10182808
Resources & Corporate Governance ,Safety and Resilience,EPL00,New Equipment,0300,3480.00,Stone Computers,100390,04/04/2013,10182538
Resources & Corporate Governance ,IT Procurement,CMP00,IT Capital Expenditure,5025,7243.00,Stone Computers,100390,04/04/2013,10182545
Resources & Corporate Governance ,General Administration,WAD00,Hardware Purchase,0375,510.00,Stone Computers,100390,18/04/2013,10183449
Economy Development & Culture,Art Gallery and Museum,AGM00,Subscriptions,0421,1000.00,Contemporary Art Society,100422,18/04/2013,10183234
Sustainable Environment ,Clinical Waste,REF04,External Contractor & Operator,0742,474.09,OCS Group UK Ltd t/a Cannon,100436,18/04/2013,10183409
Sustainable Environment ,Clinical Waste,REF04,External Contractor & Operator,0742,513.03,OCS Group UK Ltd t/a Cannon,100436,18/04/2013,10183410
Economy Development & Culture,AGM Exhibitions/Outreach,AGM02,Other Miscellaneous Expenses,0444,937.50,C'Art - Art Transport Ltd,100487,04/04/2013,10182678
Resources & Corporate Governance ,Domestic Waste Collection,WWC00,Vehicle Repair and Maintenance,0200,1216.61,Dennis Eagle Ltd,100559,18/04/2013,10182876
Resources & Corporate Governance ,Domestic Waste Collection,WWC00,Vehicle Repair and Maintenance,0200,270.44,Dennis Eagle Ltd,100559,18/04/2013,10182909
Resources & Corporate Governance ,Trade Waste Collection,WWC01,Vehicle Repair and Maintenance,0200,237.90,Dennis Eagle Ltd,100559,18/04/2013,10182909
Resources & Corporate Governance ,Domestic Waste Collection,WWC00,Vehicle Repair and Maintenance,0200,3658.09,Dennis Eagle Ltd,100559,25/04/2013,10183625
Housing Revenue Account ,Unplanned Maintenance and Repair,UMR00,R&M External Contractors,0100,3914.69,JADA Building & Maintenance Services Ltd,100583,25/04/2013,10183560
Capital Program ,Disabled Adaptations,HCR01,Capital Contract Payments,5000,94.58,JADA Building & Maintenance Services Ltd,100583,25/04/2013,10183560
Housing Revenue Account ,Unplanned Maintenance and Repair,UMR00,R&M External Contractors,0100,808.71,Dulux Decorator Centres,100597,11/04/2013,10183042
Housing Revenue Account ,Unplanned Maintenance and Repair,UMR00,R&M External Contractors,0100,2604.77,Lee Davies Decorating,100600,11/04/2013,10182854
Housing Revenue Account ,Unplanned Maintenance and Repair,UMR00,R&M External Contractors,0100,1073.62,Lee Davies Decorating,100600,25/04/2013,10183748
Resources & Corporate Governance ,WSU Depot,WDP00,Gas,0131,-862.16,ESPO,100641,04/04/2013,10182485
Resources & Corporate Governance,Corporate Property Central Utilities,CPA02,Gas,0131,-510.42,ESPO,100641,04/04/2013,10182487
Resources & Corporate Governance ,WSU Depot,WDP00,Gas,0131,1097.47,ESPO,100641,04/04/2013,10182489
Resources & Corporate Governance,Corporate Property Central Utilities,CPA02,Gas,0131,2230.17,ESPO,100641,18/04/2013,10183367
Housing Revenue Account ,Albert Square AP,AGP20,Gas,0131,2325.40,ESPO,100641,25/04/2013,10183369
Housing Revenue Account ,Tanser Court AP,AGP17,Gas,0131,2277.69,ESPO,100641,25/04/2013,10183371
Resources & Corporate Governance,Corporate Property Central Utilities,CPA02,Gas,0131,449.36,ESPO,100641,18/04/2013,10183388
Resources & Corporate Governance,Corporate Property Central Utilities,CPA02,Gas,0131,3609.32,ESPO,100641,18/04/2013,10183390
Resources & Corporate Governance ,Executive Director,CEX10,Conference & Seminar Fees,0401,495.00,Local Government Employers,100666,25/04/2013,10183787
Capital Program ,Fire Risk Assessment,HCE18,Capital Contract Payments,5000,498.65,Nationwide Windows Ltd,100808,04/04/2013,10182718
Capital Program ,Fire Risk Assessment,HCE18,Capital Contract Payments,5000,498.65,Nationwide Windows Ltd,100808,04/04/2013,10182719
Capital Program ,Fire Risk Assessment,HCE18,Capital Contract Payments,5000,498.65,Nationwide Windows Ltd,100808,04/04/2013,10182720
Capital Program ,Fire Risk Assessment,HCE18,Capital Contract Payments,5000,498.65,Nationwide Windows Ltd,100808,04/04/2013,10182721
Capital Program ,Fire Risk Assessment,HCE18,Capital Contract Payments,5000,498.65,Nationwide Windows Ltd,100808,04/04/2013,10182722
Capital Program ,Fire Risk Assessment,HCE18,Capital Contract Payments,5000,498.68,Nationwide Windows Ltd,100808,04/04/2013,10182723
Capital Program ,Fire Risk Assessment,HCE18,Capital Contract Payments,5000,504.95,Nationwide Windows Ltd,100808,04/04/2013,10182725
Capital Program ,Fire Risk Assessment,HCE18,Capital Contract Payments,5000,498.65,Nationwide Windows Ltd,100808,04/04/2013,10182726
Capital Program ,Fire Risk Assessment,HCE18,Capital Contract Payments,5000,504.92,Nationwide Windows Ltd,100808,04/04/2013,10182727
Capital Program ,Fire Risk Assessment,HCE18,Capital Contract Payments,5000,504.95,Nationwide Windows Ltd,100808,04/04/2013,10182728
Capital Program ,Fire Risk Assessment,HCE18,Capital Contract Payments,5000,504.95,Nationwide Windows Ltd,100808,04/04/2013,10182729
Capital Program ,Fire Risk Assessment,HCE18,Capital Contract Payments,5000,504.92,Nationwide Windows Ltd,100808,04/04/2013,10182730
Capital Program ,Fire Risk Assessment,HCE18,Capital Contract Payments,5000,498.59,Nationwide Windows Ltd,100808,04/04/2013,10182731
Capital Program ,Fire Risk Assessment,HCE18,Capital Contract Payments,5000,498.59,Nationwide Windows Ltd,100808,04/04/2013,10182732
Capital Program ,Fire Risk Assessment,HCE18,Capital Contract Payments,5000,498.65,Nationwide Windows Ltd,100808,04/04/2013,10182733
Capital Program ,Fire Risk Assessment,HCE18,Capital Contract Payments,5000,498.62,Nationwide Windows Ltd,100808,04/04/2013,10182734
Capital Program ,Fire Risk Assessment,HCE18,Capital Contract Payments,5000,498.65,Nationwide Windows Ltd,100808,04/04/2013,10182735
Capital Program ,Fire Risk Assessment,HCE18,Capital Contract Payments,5000,504.89,Nationwide Windows Ltd,100808,04/04/2013,10182736
Capital Program ,Fire Risk Assessment,HCE18,Capital Contract Payments,5000,498.71,Nationwide Windows Ltd,100808,04/04/2013,10182737
Capital Program ,Fire Risk Assessment,HCE18,Capital Contract Payments,5000,498.65,Nationwide Windows Ltd,100808,04/04/2013,10182738
Capital Program ,Fire Risk Assessment,HCE18,Capital Contract Payments,5000,498.68,Nationwide Windows Ltd,100808,04/04/2013,10182739
Capital Program ,Fire Risk Assessment,HCE18,Capital Contract Payments,5000,504.89,Nationwide Windows Ltd,100808,04/04/2013,10182740
Capital Program ,Fire Risk Assessment,HCE18,Capital Contract Payments,5000,498.59,Nationwide Windows Ltd,100808,04/04/2013,10182741
Capital Program ,Fire Risk Assessment,HCE18,Capital Contract Payments,5000,498.62,Nationwide Windows Ltd,100808,04/04/2013,10182742
Capital Program ,Fire Risk Assessment,HCE18,Capital Contract Payments,5000,498.65,Nationwide Windows Ltd,100808,04/04/2013,10182743
Capital Program ,Fire Risk Assessment,HCE18,Capital Contract Payments,5000,498.65,Nationwide Windows Ltd,100808,04/04/2013,10182744
Capital Program ,Fire Risk Assessment,HCE18,Capital Contract Payments,5000,498.62,Nationwide Windows Ltd,100808,04/04/2013,10182745
Capital Program ,Fire Risk Assessment,HCE18,Capital Contract Payments,5000,492.47,Nationwide Windows Ltd,100808,04/04/2013,10182746
Capital Program ,Fire Risk Assessment,HCE18,Capital Contract Payments,5000,498.59,Nationwide Windows Ltd,100808,04/04/2013,10182747
Capital Program ,Fire Risk Assessment,HCE18,Capital Contract Payments,5000,498.65,Nationwide Windows Ltd,100808,04/04/2013,10182748
Capital Program ,Fire Risk Assessment,HCE18,Capital Contract Payments,5000,498.65,Nationwide Windows Ltd,100808,04/04/2013,10182749
Capital Program ,Fire Risk Assessment,HCE18,Capital Contract Payments,5000,498.59,Nationwide Windows Ltd,100808,04/04/2013,10182750
Capital Program ,Fire Risk Assessment,HCE18,Capital Contract Payments,5000,498.59,Nationwide Windows Ltd,100808,04/04/2013,10182751
Capital Program ,Fire Risk Assessment,HCE18,Capital Contract Payments,5000,498.56,Nationwide Windows Ltd,100808,04/04/2013,10182752
Capital Program ,Fire Risk Assessment,HCE18,Capital Contract Payments,5000,504.98,Nationwide Windows Ltd,100808,04/04/2013,10182753
Capital Program ,Fire Risk Assessment,HCE18,Capital Contract Payments,5000,504.95,Nationwide Windows Ltd,100808,04/04/2013,10182755
Capital Program ,Fire Risk Assessment,HCE18,Capital Contract Payments,5000,504.83,Nationwide Windows Ltd,100808,04/04/2013,10182756
Capital Program ,Fire Risk Assessment,HCE18,Capital Contract Payments,5000,504.83,Nationwide Windows Ltd,100808,04/04/2013,10182757
Capital Program ,Fire Risk Assessment,HCE18,Capital Contract Payments,5000,504.83,Nationwide Windows Ltd,100808,04/04/2013,10182758
Capital Program ,Fire Risk Assessment,HCE18,Capital Contract Payments,5000,504.95,Nationwide Windows Ltd,100808,04/04/2013,10182759
Capital Program ,Fire Risk Assessment,HCE18,Capital Contract Payments,5000,504.86,Nationwide Windows Ltd,100808,04/04/2013,10182760
Capital Program ,Fire Risk Assessment,HCE18,Capital Contract Payments,5000,496.01,Nationwide Windows Ltd,100808,04/04/2013,10182761
Capital Program ,Fire Risk Assessment,HCE18,Capital Contract Payments,5000,498.65,Nationwide Windows Ltd,100808,04/04/2013,10182762
Capital Program ,Fire Risk Assessment,HCE18,Capital Contract Payments,5000,498.65,Nationwide Windows Ltd,100808,04/04/2013,10182763
Capital Program ,Fire Risk Assessment,HCE18,Capital Contract Payments,5000,498.68,Nationwide Windows Ltd,100808,04/04/2013,10182764
Capital Program ,External Door Replacement,HDR00,Capital Contract Payments,5000,3220.00,Nationwide Windows Ltd,100808,11/04/2013,10183045
Capital Program ,External Door Replacement,HDR00,Capital Contract Payments,5000,3080.00,Nationwide Windows Ltd,100808,11/04/2013,10183046
Resources & Corporate Governance ,Trade Waste Collection,WWC01,External Contractor & Operator,0742,1120.76,Container Services UK Limited,100811,04/04/2013,10182634
Resources & Corporate Governance ,Trade Waste Collection,WWC01,External Contractor & Operator,0742,749.00,Container Services UK Limited,100811,04/04/2013,10182635
Resources & Corporate Governance,Handy man,WHM00,Vehicle Repair and Maintenance,0200,1260.00,Ford & Slater,100817,04/04/2013,10182552
Resources & Corporate Governance ,Grounds Maintenance,WGM00,Vehicle Repair and Maintenance,0200,123.50,Ford & Slater,100817,25/04/2013,10183808
Resources & Corporate Governance ,Domestic Waste Collection,WWC00,Vehicle Repair and Maintenance,0200,330.00,Ford & Slater,100817,25/04/2013,10183808
Housing Revenue Account ,Dickinson Court AP,AGP03,New Equipment,0300,400.00,Frank Ewington Limited,100833,18/04/2013,10182968
Housing Revenue Account ,Duffy Place AP,AGP04,New Equipment,0300,400.00,Frank Ewington Limited,100833,18/04/2013,10182968
Housing Revenue Account ,Stretton Court AP,AGP13,New Equipment,0300,400.00,Frank Ewington Limited,100833,18/04/2013,10182968
,Balance Sheet,BS,Car Leasing Scheme,9244,737.60,Lex Autolease Ltd,100844,11/04/2013,10183040
,Balance Sheet,BS,Car Leasing Scheme,9244,3836.81,Lex Autolease Ltd,100844,11/04/2013,10183137
,Balance Sheet,BS,Car Leasing Scheme,9244,4818.76,Lex Autolease Ltd,100844,11/04/2013,10183138
,Balance Sheet,BS,Car Leasing Scheme,9244,5635.99,Lex Autolease Ltd,100844,25/04/2013,10183873
Resources & Corporate Governance ,Domestic Waste Collection,WWC00,Vehicle Repair and Maintenance,0200,560.62,FAUN Zoeller (UK) Ltd,100871,18/04/2013,10183520
Housing Revenue Account ,Unplanned Maintenance and Repair,UMR00,R&M External Contractors,0100,500.00,David Gilkes & Sons Ltd,100913,18/04/2013,10183431
Resources & Corporate Governance ,Grounds Maintenance,WGM00,Materials,0303,532.50,BHGS Ltd,100950,18/04/2013,10182989
Resources & Corporate Governance ,Human Resources Centralised Services,RES31,Recruitment Expenses,0012,1019.95,TMP (UK) LTD,100972,25/04/2013,10183423
Resources & Corporate Governance ,Human Resources Centralised Services,RES31,Recruitment Expenses,0012,473.20,TMP (UK) LTD,100972,25/04/2013,10183424
Resources & Corporate Governance ,Human Resources Centralised Services,RES31,Recruitment Expenses,0012,5391.00,TMP (UK) LTD,100972,25/04/2013,10183626
Resources & Corporate Governance ,Members Expenses,MEM00,Conference & Seminar Fees,0401,495.00,Improvement & Development Agency,101151,25/04/2013,10183791
Resources & Corporate Governance ,Members Expenses,MEM00,Conference & Seminar Fees,0401,495.00,Improvement & Development Agency,101151,25/04/2013,10183792
Resources & Corporate Governance ,General Financial Services,GFS00,Other Insurance Premiums,0440,6500.00,Jardine Lloyd Thompson,101192,25/04/2013,10183875
Capital Program ,Parish and Rural Capital Spending,CGR03,Capital Grants,5014,8406.50,Long Lawford Parish Council,101228,04/04/2013,10182341
,User Balance Sheet Cost Centre,BSU,Section Agreements,9865,16825.00,Long Lawford Parish Council,101228,11/04/2013,10183194
Capital Program ,Kitchen Modifications,HIK10,Capital Contract Payments,5000,588.24,M & J Engineers Ltd,101278,11/04/2013,10182516
Resources & Corporate Governance ,Highways,WHG00,Materials,0303,418.00,M & J Engineers Ltd,101278,11/04/2013,10183013
Housing Revenue Account ,Unplanned Maintenance and Repair,UMR00,R&M External Contractors,0100,2806.51,MBG Decorators (Rugby Ltd),101288,11/04/2013,10182844
Resources & Corporate Governance,Handy man,WHM00,Materials,0303,449.29,Melbros Ltd,101291,04/04/2013,10182058
Resources & Corporate Governance,Handy man,WHM00,Materials,0303,515.00,Melbros Ltd,101291,04/04/2013,10182060
Resources & Corporate Governance,Handy man,WHM00,Materials,0303,1470.68,Melbros Ltd,101291,11/04/2013,10182897
Resources & Corporate Governance,Handy man,WHM00,Materials,0303,1013.00,Melbros Ltd,101291,25/04/2013,10183291
Resources & Corporate Governance,Handy man,WHM00,Materials,0303,1118.80,Melbros Ltd,101291,18/04/2013,10183297
Resources & Corporate Governance,Handy man,WHM00,Materials,0303,730.00,Melbros Ltd,101291,25/04/2013,10183582
Resources & Corporate Governance,Housing Drainage,WDR00,Vehicle Repair and Maintenance,0200,496.52,Noden Truck Centre Ltd,101368,04/04/2013,10182439
Resources & Corporate Governance,Handy man,WHM00,Vehicle Repair and Maintenance,0200,760.86,Noden Truck Centre Ltd,101368,18/04/2013,10183215
Economy Development & Culture,Visitor Centre,VSC00,Events Tickets - Zero Rated,1405,1121.43,National Express Ltd,101392,04/04/2013,10182647
Resources & Corporate Governance,Central Business Support Services,CSS15,Stationery Supplies,0350,930.00,Polycopy,101428,18/04/2013,10183427
Sustainable Environment ,Grass Cutting,PKS13,External Contractor & Operator,0742,2245.00,Princethorpe Parish Council,101433,25/04/2013,10183842
Sustainable Environment ,Caldecott Park/Town Centre Area,PKS00,R&M External Contractors,0100,512.52,PJT Pumping Services,101438,11/04/2013,10182831
Sustainable Inclusive Communities,Sewage Disposal Plant,SDP00,R&M External Contractors,0100,520.28,PJT Pumping Services,101438,11/04/2013,10182832
Resources & Corporate Governance,Corporate Property Central Utilities,CPA02,Electricity,0130,426.11,E.ON,101479,11/04/2013,10182791
Resources & Corporate Governance,Central Business Support Services,CSS15,Photocopying,0354,610.09,Xerox (UK) Ltd,101502,25/04/2013,10183598
Resources & Corporate Governance,Central Business Support Services,CSS15,Photocopying,0354,1810.06,Xerox (UK) Ltd,101502,25/04/2013,10183599
Capital Program ,Heating Upgrades,HIM01,Capital Contract Payments,5000,350.36,Reeds Plumbing & Heating Contractors Ltd,101504,11/04/2013,10182855
Capital Program ,Electric to Gas Conversions,HIM04,Capital Contract Payments,5000,274.78,Reeds Plumbing & Heating Contractors Ltd,101504,11/04/2013,10182855
Capital Program ,Electric to Gas Conversions,HIM04,Capital Contract Payments,5000,2814.68,Reeds Plumbing & Heating Contractors Ltd,101504,25/04/2013,10183605
Capital Program ,Disabled Facilities Grant,REN01,Capital Grants,5014,3630.00,Reeds Plumbing & Heating Contractors Ltd,101504,25/04/2013,10183611
Capital Program ,Disabled Facilities Grant,REN01,Capital Grants,5014,3790.00,Reeds Plumbing & Heating Contractors Ltd,101504,25/04/2013,10183612
Resources & Corporate Governance ,Town Hall,OFF00,Internal Contractor,0743,4769.21,Rugby Borough Council,101516,18/04/2013,10183246
Sustainable Environment ,Caldecott Park/Town Centre Area,PKS00,Internal Contractor,0743,749.10,Rugby Borough Council,101516,25/04/2013,10183247
Housing Revenue Account ,Supervision and Management General,MAN00,Council Tax,0142,1020.09,Rugby Borough Council,101516,18/04/2013,10183256
Housing Revenue Account ,Supervision and Management General,MAN00,Council Tax,0142,1190.11,Rugby Borough Council,101516,18/04/2013,10183257
Sustainable Environment ,Caldecott Park/Town Centre Area,PKS00,Rates,0141,6237.00,Rugby Borough Council,101516,18/04/2013,10183259
Sustainable Environment ,Caldecott Park/Town Centre Area,PKS00,Rates,0141,1386.00,Rugby Borough Council,101516,18/04/2013,10183261
Resources & Corporate Governance ,Corporate Property Management,CPM00,Rates,0141,900.90,Rugby Borough Council,101516,18/04/2013,10183262
Economy Development & Culture,Art Gallery and Museum,AGM00,Rates,0141,115866.00,Rugby Borough Council,101516,18/04/2013,10183263
Sustainable Environment ,Market,MKT00,Rates,0141,20606.25,Rugby Borough Council,101516,18/04/2013,10183265
Resources & Corporate Governance ,Town Hall,OFF00,Rates,0141,117750.00,Rugby Borough Council,101516,18/04/2013,10183266
Sustainable Environment ,Cemeteries General,CEM00,Rates,0141,1686.30,Rugby Borough Council,101516,18/04/2013,10183267
Sustainable Environment ,Cemeteries General,CEM00,Rates,0141,1848.00,Rugby Borough Council,101516,18/04/2013,10183268
Sustainable Environment ,Cemeteries General,CEM00,Rates,0141,981.75,Rugby Borough Council,101516,18/04/2013,10183269
Sustainable Environment ,Cemeteries General,CEM00,Rates,0141,1432.20,Rugby Borough Council,101516,18/04/2013,10183270
Economy Development & Culture,Town Centre Public Conveniences,PCS00,Rates,0141,4620.00,Rugby Borough Council,101516,18/04/2013,10183272
Economy Development & Culture,Car Parks General,CPK01,Rates,0141,947.10,Rugby Borough Council,101516,18/04/2013,10183273
Economy Development & Culture,Car Parks General,CPK01,Rates,0141,11304.00,Rugby Borough Council,101516,18/04/2013,10183274
Economy Development & Culture,James St. Multi-storey Car Park,CPK02,Rates,0141,24256.50,Rugby Borough Council,101516,18/04/2013,10183275
Economy Development & Culture,Car Parks General,CPK01,Rates,0141,5428.50,Rugby Borough Council,101516,18/04/2013,10183276
Economy Development & Culture,Car Parks General,CPK01,Rates,0141,3234.00,Rugby Borough Council,101516,18/04/2013,10183277
Economy Development & Culture,Car Parks General,CPK01,Rates,0141,3049.20,Rugby Borough Council,101516,18/04/2013,10183278
Economy Development & Culture,Car Parks General,CPK01,Rates,0141,19782.00,Rugby Borough Council,101516,18/04/2013,10183279
Economy Development & Culture,Car Parks General,CPK01,Rates,0141,3095.40,Rugby Borough Council,101516,18/04/2013,10183280
Economy Development & Culture,Car Parks General,CPK01,Rates,0141,4735.50,Rugby Borough Council,101516,18/04/2013,10183281
Economy Development & Culture,The Benn Hall,BHL00,Internal Contractor,0743,1733.76,Rugby Borough Council,101516,18/04/2013,10183364
Economy Development & Culture,Art Gallery and Museum,AGM00,Postage & Distribution,0370,2.67,Royal Mail,101554,04/04/2013,10181662
Economy Development & Culture,Building Control Services,BCS00,Postage & Distribution,0370,0.59,Royal Mail,101554,04/04/2013,10181662
Economy Development & Culture,Building Regulation Fee Earning Account,BCS99,Postage & Distribution,0370,0.78,Royal Mail,101554,04/04/2013,10181662
Economy Development & Culture,Car Parks General,CPK01,Postage & Distribution,0370,36.09,Royal Mail,101554,04/04/2013,10181662
Resources & Corporate Governance,Central Business Support Services,CSS15,Postage & Distribution,0370,236.74,Royal Mail,101554,04/04/2013,10181662
Resources & Corporate Governance ,Council Tax and NNDR Collection,CTX01,Postage & Distribution,0370,5.51,Royal Mail,101554,04/04/2013,10181662
Economy Development & Culture,Decrim. of Car Parking on street parking,DPE02,Postage & Distribution,0370,144.37,Royal Mail,101554,04/04/2013,10181662
Resources & Corporate Governance ,Electoral Registration,ERG00,Postage & Distribution,0370,0.88,Royal Mail,101554,04/04/2013,10181662
Sustainable Inclusive Communities,Housing Benefit Administration,HBA00,Postage & Distribution,0370,128.01,Royal Mail,101554,04/04/2013,10181662
Housing Revenue Account ,Supervision and Management General,MAN00,Postage & Distribution,0370,936.88,Royal Mail,101554,04/04/2013,10181662
Economy Development & Culture,Planning General/Income,PLN00,Postage & Distribution,0370,122.54,Royal Mail,101554,04/04/2013,10181662
Economy Development & Culture,Visitor Centre,VSC00,Postage & Distribution,0370,2.12,Royal Mail,101554,04/04/2013,10181662
Resources & Corporate Governance ,General Administration,WAD00,Postage & Distribution,0370,9.68,Royal Mail,101554,04/04/2013,10181662
Economy Development & Culture,Building Control Services,BCS00,Postage & Distribution,0370,1.14,Royal Mail,101554,04/04/2013,10181951
Economy Development & Culture,Building Regulation Fee Earning Account,BCS99,Postage & Distribution,0370,1.50,Royal Mail,101554,04/04/2013,10181951
Economy Development & Culture,Car Parks General,CPK01,Postage & Distribution,0370,18.00,Royal Mail,101554,04/04/2013,10181951
Resources & Corporate Governance,Central Business Support Services,CSS15,Postage & Distribution,0370,168.19,Royal Mail,101554,04/04/2013,10181951
Resources & Corporate Governance ,Council Tax and NNDR Collection,CTX01,Postage & Distribution,0370,190.25,Royal Mail,101554,04/04/2013,10181951
Economy Development & Culture,Decrim. of Car Parking on street parking,DPE02,Postage & Distribution,0370,71.99,Royal Mail,101554,04/04/2013,10181951
Resources & Corporate Governance ,Electoral Registration,ERG00,Postage & Distribution,0370,1.98,Royal Mail,101554,04/04/2013,10181951
Sustainable Inclusive Communities,Housing Benefit Administration,HBA00,Postage & Distribution,0370,120.71,Royal Mail,101554,04/04/2013,10181951
Housing Revenue Account ,Supervision and Management General,MAN00,Postage & Distribution,0370,568.77,Royal Mail,101554,04/04/2013,10181951
Economy Development & Culture,Planning General/Income,PLN00,Postage & Distribution,0370,80.64,Royal Mail,101554,04/04/2013,10181951
Resources & Corporate Governance ,General Administration,WAD00,Postage & Distribution,0370,9.02,Royal Mail,101554,04/04/2013,10181951
Economy Development & Culture,Art Gallery and Museum,AGM00,Postage & Distribution,0370,5.98,Royal Mail,101554,18/04/2013,10182801
Economy Development & Culture,Building Control Services,BCS00,Postage & Distribution,0370,0.23,Royal Mail,101554,18/04/2013,10182801
Economy Development & Culture,Building Control Services Non-Fee Earning Account,BCS01,Postage & Distribution,0370,0.23,Royal Mail,101554,18/04/2013,10182801
Economy Development & Culture,Building Regulation Fee Earning Account,BCS99,Postage & Distribution,0370,4.16,Royal Mail,101554,18/04/2013,10182801
Economy Development & Culture,Car Parks General,CPK01,Postage & Distribution,0370,33.12,Royal Mail,101554,18/04/2013,10182801
Resources & Corporate Governance,Central Business Support Services,CSS15,Postage & Distribution,0370,405.80,Royal Mail,101554,18/04/2013,10182801
Resources & Corporate Governance ,Council Tax and NNDR Collection,CTX01,Postage & Distribution,0370,100.36,Royal Mail,101554,18/04/2013,10182801
Economy Development & Culture,Decrim. of Car Parking on street parking,DPE02,Postage & Distribution,0370,132.49,Royal Mail,101554,18/04/2013,10182801
Resources & Corporate Governance ,Electoral Registration,ERG00,Postage & Distribution,0370,49.37,Royal Mail,101554,18/04/2013,10182801
Sustainable Inclusive Communities,Housing Benefit Administration,HBA00,Postage & Distribution,0370,324.89,Royal Mail,101554,18/04/2013,10182801
Housing Revenue Account ,Supervision and Management General,MAN00,Postage & Distribution,0370,193.95,Royal Mail,101554,18/04/2013,10182801
Economy Development & Culture,Planning General/Income,PLN00,Postage & Distribution,0370,153.07,Royal Mail,101554,18/04/2013,10182801
Economy Development & Culture,Visitor Centre,VSC00,Postage & Distribution,0370,0.66,Royal Mail,101554,18/04/2013,10182801
Resources & Corporate Governance ,General Administration,WAD00,Postage & Distribution,0370,27.88,Royal Mail,101554,18/04/2013,10182801
Resources & Corporate Governance,Other Elections,ELC01,Postage & Distribution,0370,17683.00,Royal Mail,101554,18/04/2013,10182823
Housing Revenue Account ,Unplanned Maintenance and Repair,UMR00,R&M External Contractors,0100,6948.79,Rugby Plastering Services,101602,11/04/2013,10182840
Housing Revenue Account ,Unplanned Maintenance and Repair,UMR00,R&M External Contractors,0100,1328.64,Rugby Plastering Services,101602,11/04/2013,10182842
Resources & Corporate Governance ,WSU Depot,WDP00,Water Services,0143,1091.81,Severn Trent Water Ltd,101610,11/04/2013,10181156
Resources & Corporate Governance,Corporate Property Central Utilities,CPA02,Water Services,0143,2746.76,Severn Trent Water Ltd,101610,18/04/2013,10182975
Capital Program ,Disabled Adaptations,HCR01,Capital Contract Payments,5000,1155.00,Stannah Stairlifts Ltd,101623,04/04/2013,10182334
Capital Program ,Disabled Facilities Grant,REN01,Capital Grants,5014,2539.00,Stannah Stairlifts Ltd,101623,04/04/2013,10182351
Capital Program ,Disabled Facilities Grant,REN01,Capital Grants,5014,3285.54,Stannah Stairlifts Ltd,101623,25/04/2013,10183540
Capital Program ,Disabled Facilities Grant,REN01,Capital Grants,5014,4944.00,Stannah Stairlifts Ltd,101623,25/04/2013,10183610
Capital Program ,Disabled Facilities Grant,REN01,Capital Grants,5014,1811.00,Stannah Stairlifts Ltd,101623,25/04/2013,10183613
Resources & Corporate Governance,Corporate Property R&M,CPA01,R&M External Contractors,0100,1089.00,Steve Diston Contract Flooring,101668,11/04/2013,10182548
Resources & Corporate Governance,Corporate Property R&M,CPA01,R&M External Contractors,0100,890.20,Secom Plc,101671,04/04/2013,10182472
Resources & Corporate Governance,Corporate Property R&M,CPA01,R&M External Contractors,0100,1271.00,Secom Plc,101671,18/04/2013,10183316
Resources & Corporate Governance ,WSU Depot,WDP00,Telephone Expenses,0371,564.82,Secom Plc,101671,25/04/2013,10183758
Resources & Corporate Governance ,Highways,WHG00,Vehicle Running Costs,0201,271.00,HI-Q Motorway,101736,11/04/2013,10183076
Resources & Corporate Governance,Handy man,WHM00,Vehicle Running Costs,0201,26.00,HI-Q Motorway,101736,11/04/2013,10183076
Resources & Corporate Governance ,Domestic Waste Collection,WWC00,Vehicle Running Costs,0201,742.50,HI-Q Motorway,101736,11/04/2013,10183076
Resources & Corporate Governance,Handy man,WHM00,Vehicle Running Costs,0201,51.00,HI-Q Motorway,101736,11/04/2013,10183078
Resources & Corporate Governance ,Domestic Waste Collection,WWC00,Vehicle Running Costs,0201,635.91,HI-Q Motorway,101736,11/04/2013,10183078
Resources & Corporate Governance ,Trade Waste Collection,WWC01,Vehicle Running Costs,0201,196.00,HI-Q Motorway,101736,11/04/2013,10183078
Resources & Corporate Governance ,Domestic Waste Collection,WWC00,Vehicle Running Costs,0201,414.00,HI-Q Motorway,101736,11/04/2013,10183079
Resources & Corporate Governance ,Trade Waste Collection,WWC01,Vehicle Running Costs,0201,403.00,HI-Q Motorway,101736,11/04/2013,10183079
Resources & Corporate Governance ,Domestic Waste Collection,WWC00,Vehicle Running Costs,0201,879.98,HI-Q Motorway,101736,25/04/2013,10183586
Resources & Corporate Governance ,Grounds Maintenance,WGM00,Materials,0303,475.71,Tudor Environmental,101743,11/04/2013,10183128
Resources & Corporate Governance ,Grounds Maintenance,WGM00,Tools,0304,67.00,Tudor Environmental,101743,11/04/2013,10183128
Resources & Corporate Governance ,Domestic Waste Collection,WWC00,Vehicle Repair and Maintenance,0200,2055.66,Terberg Matec Uk,101761,04/04/2013,10182716
Resources & Corporate Governance ,Domestic Waste Collection,WWC00,Vehicle Repair and Maintenance,0200,512.45,Terberg Matec Uk,101761,11/04/2013,10182790
Resources & Corporate Governance ,Highways,WHG00,Vehicle Repair and Maintenance,0200,1207.31,Transloader Services,101766,25/04/2013,10183130
Sustainable Environment ,Grass Cutting,PKS13,External Contractor & Operator,0742,578.00,Withybrook Parish Council,101849,11/04/2013,10183052
,User Balance Sheet Cost Centre,BSU,Section Agreements,9865,3443.91,Warwickshire Wildlife Trust,101860,25/04/2013,10183730
Resources & Corporate Governance ,General Financial Services,GFS00,Subscriptions,0421,4750.00,West Midlands Employers,101880,25/04/2013,10183549
Economy Development & Culture,Car Parks General,CPK01,Payments to Other Local Authorities,0710,11090.70,Warwickshire County Council,101893,04/04/2013,10182504
Economy Development & Culture,Planning General/Income,PLN00,Consultancy Costs,0740,2513.00,Warwickshire County Council,101893,04/04/2013,10182519
Sustainable Inclusive Communities,Housing Strategy & Enabling,HSE00,Payments to Other Local Authorities,0710,3000.00,Warwickshire County Council,101893,04/04/2013,10182793
Resources & Corporate Governance ,Land Charges,LCH00,Payments to Other Local Authorities,0710,7690.50,Warwickshire County Council,101893,18/04/2013,10183347
Resources & Corporate Governance ,Trade Waste Collection,WWC01,Removal of Waste - WCC,0711,47127.96,Warwickshire County Council,101893,25/04/2013,10183542
Resources & Corporate Governance ,"Communications, Consultation and Information Team",BTR20,Payments to Other Local Authorities,0710,6000.00,Warwickshire County Council,101893,25/04/2013,10183743
Housing Revenue Account ,Unplanned Maintenance and Repair,UMR00,R&M External Contractors,0100,3251.54,Darren Wilson Roofing Ltd,101911,18/04/2013,10183358
Resources & Corporate Governance,Handy man,WHM00,External Contractor & Operator,0742,2440.00,Darren Wilson Roofing Ltd,101911,25/04/2013,10183515
Housing Revenue Account ,Unplanned Maintenance and Repair,UMR00,R&M External Contractors,0100,459.70,Adroit Services Ltd,101939,04/04/2013,10182175
Housing Revenue Account ,Unplanned Maintenance and Repair,UMR00,R&M External Contractors,0100,1082.76,Adroit Services Ltd,101939,11/04/2013,10182838
Housing Revenue Account ,Unplanned Maintenance and Repair,UMR00,R&M External Contractors,0100,765.31,Adroit Services Ltd,101939,11/04/2013,10182839
Capital Program ,Electric to Gas Conversions,HIM04,Capital Contract Payments,5000,718.67,Adroit Services Ltd,101939,11/04/2013,10182839
Housing Revenue Account ,Unplanned Maintenance and Repair,UMR00,R&M External Contractors,0100,1641.32,Adroit Services Ltd,101939,11/04/2013,10183139
Housing Revenue Account ,Unplanned Maintenance and Repair,UMR00,R&M External Contractors,0100,2339.96,Adroit Services Ltd,101939,18/04/2013,10183359
Housing Revenue Account ,Gas Heating Systems,UMR01,R&M External Contractors,0100,51.77,Adroit Services Ltd,101939,18/04/2013,10183359
Housing Revenue Account ,Unplanned Maintenance and Repair,UMR00,R&M External Contractors,0100,23.35,Adroit Services Ltd,101939,25/04/2013,10183825
Capital Program ,Electric to Gas Conversions,HIM04,Capital Contract Payments,5000,2512.38,Adroit Services Ltd,101939,25/04/2013,10183825
Resources & Corporate Governance,Corporate Property R&M,CPA01,R&M External Contractors,0100,725.00,Wallgate Ltd,107425,18/04/2013,10183244
Resources & Corporate Governance,Corporate Property R&M,CPA01,R&M External Contractors,0100,580.00,Wallgate Ltd,107425,18/04/2013,10183245
Resources & Corporate Governance ,"Communications, Consultation and Information Team",BTR20,Publicity & Marketing,0377,884.00,Johnston Publishing Ltd,107468,11/04/2013,10182970
Resources & Corporate Governance ,"Communications, Consultation and Information Team",BTR20,Publicity & Marketing,0377,1986.32,Johnston Publishing Ltd,107468,11/04/2013,10182973
Resources & Corporate Governance ,Change Team,BTR50,Payments to Other Local Authorities,0710,14325.73,Nuneaton & Bedworth Borough Council,108060,18/04/2013,10183003
Resources & Corporate Governance ,Human Resources,RES30,Payments to Other Local Authorities,0710,4041.51,Nuneaton & Bedworth Borough Council,108060,11/04/2013,10183152
Resources & Corporate Governance ,Human Resources,RES30,Payments to Other Local Authorities,0710,7992.26,Nuneaton & Bedworth Borough Council,108060,25/04/2013,10183538
Housing Revenue Account ,Unplanned Maintenance and Repair,UMR00,R&M External Contractors,0100,565.00,Ser-Tec Systems Ltd,108074,04/04/2013,10182329
Capital Program ,Crematorium Project,BUR04,Capital Contract Payments,5000,13997.58,W A Adams R W A/C,108937,25/04/2013,10183839
Capital Program ,Crematorium Project,BUR04,Capital Contract Payments,5000,49816.83,Daventry District Council,108940,04/04/2013,10182343
Capital Program ,Crematorium Project,BUR04,Miscellaneous Capital Expenditure,5020,22236.97,Daventry District Council,108940,04/04/2013,10182343
Capital Program ,Crematorium Project,BUR04,Capital Contract Payments,5000,11219.78,Daventry District Council,108940,04/04/2013,10182529
Capital Program ,Crematorium Project,BUR04,Miscellaneous Capital Expenditure,5020,5081.43,Daventry District Council,108940,04/04/2013,10182529
Capital Program ,Crematorium Project,BUR04,Capital Contract Payments,5000,1740.39,Daventry District Council,108940,25/04/2013,10183623
Economy Development & Culture,Planning Control,PLN01,External Legal Costs,0741,6250.00,SATNAM SINGH CHOONGH,109271,18/04/2013,10183535
Resources & Corporate Governance ,Grounds Maintenance,WGM00,Vehicle Repair and Maintenance,0200,527.84,Boughton Loam Limited,110360,11/04/2013,10181992
Resources & Corporate Governance ,Garage Internal,WVR01,Materials,0303,34140.00,Watson Petroleum,110361,04/04/2013,10182680
Resources & Corporate Governance ,Garage Internal,WVR01,Materials,0303,22420.93,Watson Petroleum,110361,25/04/2013,10183634
Resources & Corporate Governance,Central Business Support Services,CSS15,Photocopying,0354,742.13,Ricoh UK Limited,111532,25/04/2013,10183736
Housing Revenue Account ,Unplanned Maintenance and Repair,UMR00,R&M External Contractors,0100,1005.16,Dampco,111839,04/04/2013,10182204
Resources & Corporate Governance ,Maintenance of Customer Services Systems,CIS21,Software Purchase,0373,875.00,Civica UK Ltd,112724,11/04/2013,10181423
Resources & Corporate Governance ,Maintenance of Customer Services Systems,CIS21,Software Maintenance,0374,600.00,Civica UK Ltd,112724,18/04/2013,10183450
Resources & Corporate Governance ,Grounds Maintenance,WGM00,Tools,0304,750.00,Geo Browns Implements Ltd,112870,04/04/2013,10182681
Resources & Corporate Governance ,Domestic Waste Collection,WWC00,Agency Staff,0003,598.77,Extra Personnel Limited,112996,04/04/2013,10182579
Resources & Corporate Governance ,Domestic Waste Collection,WWC00,Agency Staff,0003,508.37,Extra Personnel Limited,112996,11/04/2013,10182992
Resources & Corporate Governance ,Domestic Waste Collection,WWC00,Agency Staff,0003,508.37,Extra Personnel Limited,112996,18/04/2013,10183436
Resources & Corporate Governance ,Domestic Waste Collection,WWC00,Agency Staff,0003,508.37,Extra Personnel Limited,112996,25/04/2013,10183816
Economy Development & Culture,Car Parks General,CPK01,Stationery Supplies,0350,145.78,Duraweld,113271,04/04/2013,10182576
Economy Development & Culture,Decrim. of Car Parking on street parking,DPE02,Stationery Supplies,0350,583.12,Duraweld,113271,04/04/2013,10182576
Sustainable Inclusive Communities,Housing Benefit Administration,HBA00,Agency Staff,0003,1019.25,Badenoch & Clark,113435,04/04/2013,10182527
Sustainable Inclusive Communities,Housing Benefit Administration,HBA00,Agency Staff,0003,884.25,Badenoch & Clark,113435,11/04/2013,10182942
Sustainable Inclusive Communities,Housing Benefit Administration,HBA00,Agency Staff,0003,904.50,Badenoch & Clark,113435,18/04/2013,10183237
Resources & Corporate Governance ,Legal Services,DEM20,Ref. Books Journals & Magazines,0353,1980.00,Lexis Nexis Butterworths,114132,25/04/2013,10183752
Housing Revenue Account ,Unplanned Maintenance and Repair,UMR00,R&M External Contractors,0100,1341.40,Temple Lifts Ltd,114738,11/04/2013,10180022
Housing Revenue Account ,Unplanned Maintenance and Repair,UMR00,R&M External Contractors,0100,554.00,Temple Lifts Ltd,114738,18/04/2013,10183250
Sustainable Environment ,Cemeteries General,CEM00,Purchases for Resale,0305,609.50,Streetmaster (South Wales) Ltd,114898,11/04/2013,10183070
Resources & Corporate Governance ,WSU Depot,WDP00,Messing Facilities,0332,568.80,Siemens Financial Services Ltd,116057,25/04/2013,10183558
Economy Development & Culture,AGM Exhibitions/Outreach,AGM02,Other Miscellaneous Expenses,0444,1800.00,Craftspace Ltd,116222,11/04/2013,10183175
Capital Program ,Purchase of Vehicles,VHC00,Miscellaneous Capital Expenditure,5020,23995.00,T H White Ltd,116311,11/04/2013,10182991
Sustainable Environment ,Cemeteries General,CEM00,R&M External Contractors,0100,1045.00,Lushglen,117749,04/04/2013,10182483
Economy Development & Culture,Street Furniture,HIG01,External Contractor & Operator,0742,577.50,Lushglen,117749,25/04/2013,10183898
Sustainable Inclusive Communities,Housing Options Team,HOT00,Rents,0140,520.00,The Hillmorton Manor Hotel,118672,11/04/2013,10182353
Sustainable Environment ,Caldecott Park/Town Centre Area,PKS00,External Contractor & Operator,0742,1904.00,Hi-Lite Electrical Ltd,118814,04/04/2013,10182433
Resources & Corporate Governance,Corporate Property Central Utilities,CPA02,Electricity,0130,83.67,Southern Electric,118976,04/04/2013,10181671
Resources & Corporate Governance ,WSU Depot,WDP00,Electricity,0130,5896.73,Southern Electric,118976,04/04/2013,10181671
Resources & Corporate Governance,Corporate Property Central Utilities,CPA02,Electricity,0130,9717.36,Southern Electric,118976,25/04/2013,10183323
Resources & Corporate Governance,Corporate Property Central Utilities,CPA02,Electricity,0130,499.22,Southern Electric,118976,25/04/2013,10183543
Resources & Corporate Governance ,Domestic Waste Collection,WWC00,Vehicle Repair and Maintenance,0200,443.01,Zoeller Waste Systems Limited,119513,18/04/2013,10181523
Resources & Corporate Governance ,Domestic Waste Collection,WWC00,Vehicle Repair and Maintenance,0200,560.62,Zoeller Waste Systems Limited,119513,11/04/2013,10182873
Resources & Corporate Governance ,Domestic Waste Collection,WWC00,Agency Staff,0003,430.79,Taskforce Recruitment Ltd,119614,04/04/2013,10179526
Resources & Corporate Governance ,Toilet Cleaning,WBC01,Agency Staff,0003,385.71,G-Staff Ltd,120173,04/04/2013,10181510
Resources & Corporate Governance,Handy man,WHM00,Agency Staff,0003,410.33,G-Staff Ltd,120173,04/04/2013,10181510
Resources & Corporate Governance ,Street Cleansing,WSC00,Agency Staff,0003,294.12,G-Staff Ltd,120173,04/04/2013,10181510
Resources & Corporate Governance ,Domestic Waste Collection,WWC00,Agency Staff,0003,1661.71,G-Staff Ltd,120173,04/04/2013,10181510
Resources & Corporate Governance ,Trade Waste Collection,WWC01,Agency Staff,0003,585.59,G-Staff Ltd,120173,04/04/2013,10181510
Resources & Corporate Governance ,Toilet Cleaning,WBC01,Agency Staff,0003,365.52,G-Staff Ltd,120173,04/04/2013,10182432
Resources & Corporate Governance,Handy man,WHM00,Agency Staff,0003,390.10,G-Staff Ltd,120173,04/04/2013,10182432
Resources & Corporate Governance ,Street Cleansing,WSC00,Agency Staff,0003,491.89,G-Staff Ltd,120173,04/04/2013,10182432
Resources & Corporate Governance ,Domestic Waste Collection,WWC00,Agency Staff,0003,1791.72,G-Staff Ltd,120173,04/04/2013,10182432
Resources & Corporate Governance ,Trade Waste Collection,WWC01,Agency Staff,0003,456.89,G-Staff Ltd,120173,04/04/2013,10182432
Resources & Corporate Governance,Handy man,WHM00,Agency Staff,0003,533.33,G-Staff Ltd,120173,04/04/2013,10182565
Resources & Corporate Governance ,Street Cleansing,WSC00,Agency Staff,0003,368.89,G-Staff Ltd,120173,04/04/2013,10182565
Resources & Corporate Governance ,Domestic Waste Collection,WWC00,Agency Staff,0003,925.39,G-Staff Ltd,120173,04/04/2013,10182565
Resources & Corporate Governance ,Trade Waste Collection,WWC01,Agency Staff,0003,720.72,G-Staff Ltd,120173,04/04/2013,10182565
Resources & Corporate Governance ,Toilet Cleaning,WBC01,Agency Staff,0003,395.98,G-Staff Ltd,120173,11/04/2013,10182908
Resources & Corporate Governance,Handy man,WHM00,Agency Staff,0003,332.70,G-Staff Ltd,120173,11/04/2013,10182908
Resources & Corporate Governance ,Street Cleansing,WSC00,Agency Staff,0003,299.10,G-Staff Ltd,120173,11/04/2013,10182908
Resources & Corporate Governance ,Domestic Waste Collection,WWC00,Agency Staff,0003,2424.34,G-Staff Ltd,120173,11/04/2013,10182908
Resources & Corporate Governance ,Trade Waste Collection,WWC01,Agency Staff,0003,712.56,G-Staff Ltd,120173,11/04/2013,10182908
Resources & Corporate Governance,Handy man,WHM00,Agency Staff,0003,61.50,G-Staff Ltd,120173,18/04/2013,10183434
Resources & Corporate Governance ,Street Cleansing,WSC00,Agency Staff,0003,294.12,G-Staff Ltd,120173,18/04/2013,10183434
Resources & Corporate Governance ,Domestic Waste Collection,WWC00,Agency Staff,0003,2051.73,G-Staff Ltd,120173,18/04/2013,10183434
Resources & Corporate Governance ,Trade Waste Collection,WWC01,Agency Staff,0003,746.42,G-Staff Ltd,120173,18/04/2013,10183434
Resources & Corporate Governance ,Toilet Cleaning,WBC01,Agency Staff,0003,703.10,G-Staff Ltd,120173,25/04/2013,10183635
Resources & Corporate Governance ,Street Cleansing,WSC00,Agency Staff,0003,184.50,G-Staff Ltd,120173,25/04/2013,10183635
Resources & Corporate Governance ,Domestic Waste Collection,WWC00,Agency Staff,0003,1463.75,G-Staff Ltd,120173,25/04/2013,10183635
Resources & Corporate Governance ,Trade Waste Collection,WWC01,Agency Staff,0003,585.59,G-Staff Ltd,120173,25/04/2013,10183635
Resources & Corporate Governance ,Maintenance of Customer Services Systems,CIS21,Software Maintenance,0374,1300.00,Northgate Information Solutions UK Ltd,121606,04/04/2013,10182336
Resources & Corporate Governance ,"Communications, Consultation and Information Team",BTR20,Publicity & Marketing,0377,525.00,Janus Kreative,121748,18/04/2013,10183282
Housing Revenue Account ,Property Maintenance,MAN23,Consultancy Costs,0740,1286.40,HQN Limited,122890,25/04/2013,10183827
Housing Revenue Account ,Maintenance of Open Spaces,MOS00,External Contractor & Operator,0742,584.53,Brinklow Quarry,122921,11/04/2013,10183210
Sustainable Environment ,Caldecott Park/Town Centre Area,PKS00,Maintenance of Equipment,0301,1312.00,Proludic,123148,04/04/2013,10182415
Resources & Corporate Governance ,Customer and Information Strategy,CIS10,Hardware Maintenance,0376,2596.44,Cable & Wireless/T/A Vodafone,123224,11/04/2013,10183116
Resources & Corporate Governance ,Central Telephone Service,TEL00,Telephone Expenses,0371,1042.61,Cable & Wireless/T/A Vodafone,123224,11/04/2013,10183117
Resources & Corporate Governance ,Customer and Information Strategy,CIS10,Hardware Maintenance,0376,999.00,Cable & Wireless/T/A Vodafone,123224,25/04/2013,10183550
Resources & Corporate Governance ,Domestic Waste Collection,WWC00,Materials,0303,540.00,SSI Schaefer Ltd,123543,04/04/2013,10181547
Resources & Corporate Governance ,"Communications, Consultation and Information Team",BTR20,Publicity & Marketing,0377,867.67,British Telecommunications,124840,25/04/2013,10183738
Resources & Corporate Governance ,Domestic Waste Collection,WWC00,Contract Hire,0220,650.00,Phoenix Vehicle Hire Ltd,126659,11/04/2013,10183180
Economy Development & Culture,Economic Development General,ECD00,Borough Local Plan,0452,1000.00,George and Company (Surveyors) Ltd,126668,04/04/2013,10182570
Housing Revenue Account ,Unplanned Maintenance and Repair,UMR00,R&M External Contractors,0100,100.00,George and Company (Surveyors) Ltd,126668,18/04/2013,10183357
Housing Revenue Account ,Property Maintenance,MAN23,External Contractor & Operator,0742,600.00,George and Company (Surveyors) Ltd,126668,18/04/2013,10183357
Resources & Corporate Governance ,WSU Depot,WDP00,Telephone Expenses,0371,750.00,Orange PCS Limited,127916,25/04/2013,10183617
Resources & Corporate Governance ,WSU Depot,WDP00,Telephone Expenses,0371,-450.00,Orange PCS Limited,127916,25/04/2013,10183723
Resources & Corporate Governance,Handy man,WHM00,External Contractor & Operator,0742,580.00,M P Hudson & Son,129334,04/04/2013,10182639
Resources & Corporate Governance,Handy man,WHM00,External Contractor & Operator,0742,506.50,M P Hudson & Son,129334,25/04/2013,10183759
Housing Revenue Account ,Control Centre CCTV,CCE01,New Equipment,0300,499.92,Lyreco,129956,11/04/2013,10182969
Capital Program ,Moving in Grants,MIG00,Capital Contract Payments,5000,3000.00,Rugby First Limited - Town Centre,130214,11/04/2013,10182833
Economy Development & Culture,Economic Development General,ECD00,Development Activities,0450,500.00,Rugby First Limited - Town Centre,130214,25/04/2013,10183496
Economy Development & Culture,Car Parks General,CPK01,Cash Collection,0744,1013.80,Jade Security Services Ltd,131711,11/04/2013,10183197
Economy Development & Culture,Decrim. of Car Parking on street parking,DPE02,Cash Collection,0744,591.84,Jade Security Services Ltd,131711,11/04/2013,10183198
Capital Program ,Disabled Facilities Grant,REN01,Capital Grants,5014,3874.00,D K Builders,131946,25/04/2013,10183512
Capital Program ,Disabled Facilities Grant,REN01,Capital Grants,5014,3874.00,D K Builders,131946,25/04/2013,10183513
Sustainable Inclusive Communities,Housing Options Team,HOT00,Rents,0140,1400.00,N Mallidi,132033,18/04/2013,10181772
Sustainable Inclusive Communities,Housing Options Team,HOT00,Rents,0140,700.00,N Mallidi,132033,18/04/2013,10182348
Sustainable Inclusive Communities,Housing Options Team,HOT00,Rents,0140,700.00,N Mallidi,132033,18/04/2013,10182354
Sustainable Inclusive Communities,Housing Options Team,HOT00,Rents,0140,728.00,N Mallidi,132033,11/04/2013,10182477
Sustainable Inclusive Communities,Housing Options Team,HOT00,Rents,0140,1400.00,N Mallidi,132033,18/04/2013,10183163
Sustainable Inclusive Communities,Housing Options Team,HOT00,Rents,0140,527.00,N Mallidi,132033,18/04/2013,10183236
Housing Revenue Account ,Unplanned Maintenance and Repair,UMR00,R&M External Contractors,0100,465.30,Wilson Electrics,132051,25/04/2013,10183601
Economy Development & Culture,Economic Development General,ECD00,Borough Local Plan,0452,12478.00,Valuation Office Agency,132903,18/04/2013,10180143
Economy Development & Culture,Car Parks General,CPK01,New Equipment,0300,4165.47,Chipside Limited,133289,04/04/2013,10182541
Economy Development & Culture,Decrim. of Car Parking on street parking,DPE02,New Equipment,0300,16661.88,Chipside Limited,133289,04/04/2013,10182541
Economy Development & Culture,Car Parks General,CPK01,New Equipment,0300,100.00,Chipside Limited,133289,04/04/2013,10182543
Economy Development & Culture,Decrim. of Car Parking on street parking,DPE02,New Equipment,0300,400.00,Chipside Limited,133289,04/04/2013,10182543
Resources & Corporate Governance ,Highways,WHG00,Materials,0303,567.68,Breedon Aggregates England Limited,133309,04/04/2013,10182662
Resources & Corporate Governance ,Highways,WHG00,Materials,0303,620.70,Breedon Aggregates England Limited,133309,04/04/2013,10182663
Resources & Corporate Governance ,Highways,WHG00,Materials,0303,959.31,Breedon Aggregates England Limited,133309,11/04/2013,10183019
Resources & Corporate Governance ,Highways,WHG00,Materials,0303,443.88,Breedon Aggregates England Limited,133309,11/04/2013,10183020
Housing Revenue Account ,Estate Management,MAN22,Conference & Seminar Fees,0401,1410.00,Ocean Media Group Ltd,133594,11/04/2013,10182994
Resources & Corporate Governance,Corporate Property R&M,CPA01,R&M External Contractors,0100,499.95,Sunfish Services Ltd,133886,04/04/2013,10182571
Resources & Corporate Governance,Corporate Property R&M,CPA01,R&M External Contractors,0100,2049.16,Sunfish Services Ltd,133886,04/04/2013,10182572
Resources & Corporate Governance,Corporate Property R&M,CPA01,R&M External Contractors,0100,2568.18,Sunfish Services Ltd,133886,04/04/2013,10182573
Resources & Corporate Governance,Corporate Property R&M,CPA01,R&M External Contractors,0100,1999.55,Sunfish Services Ltd,133886,18/04/2013,10183073
Housing Revenue Account ,Unplanned Maintenance and Repair,UMR00,R&M External Contractors,0100,13372.77,Sunfish Services Ltd,133886,11/04/2013,10183144
Housing Revenue Account ,Unplanned Maintenance and Repair,UMR00,R&M External Contractors,0100,1229.17,Delec Ltd,133887,11/04/2013,10182852
Housing Revenue Account ,Unplanned Maintenance and Repair,UMR00,R&M External Contractors,0100,2158.78,Delec Ltd,133887,11/04/2013,10183142
Housing Revenue Account ,Unplanned Maintenance and Repair,UMR00,R&M External Contractors,0100,2148.23,Delec Ltd,133887,25/04/2013,10183604
Economy Development & Culture,Decrim. of Car Parking on street parking,DPE02,Other Consumables,0351,4285.00,Darrall & Dodd Print Limited,135645,04/04/2013,10182623
Economy Development & Culture,Car Parks General,CPK01,Other Consumables,0351,657.00,Darrall & Dodd Print Limited,135645,11/04/2013,10182961
Economy Development & Culture,Decrim. of Car Parking on street parking,DPE02,Other Consumables,0351,2628.00,Darrall & Dodd Print Limited,135645,11/04/2013,10182961
Housing Revenue Account ,Avon Court AP,AGP02,Electricity,0130,164.01,Southern Electric,135653,25/04/2013,10183329
Housing Revenue Account ,Duffy Place AP,AGP04,Electricity,0130,902.11,Southern Electric,135653,25/04/2013,10183329
Housing Revenue Account ,Frederick Press Way AP,AGP06,Electricity,0130,1721.23,Southern Electric,135653,25/04/2013,10183329
Housing Revenue Account ,Mercer Court AP,AGP09,Electricity,0130,604.78,Southern Electric,135653,25/04/2013,10183329
Housing Revenue Account ,Pettiver Crescent I AP,AGP10,Electricity,0130,1125.29,Southern Electric,135653,25/04/2013,10183329
Housing Revenue Account ,Sun Street/Windsor Street AP,AGP14,Electricity,0130,1872.84,Southern Electric,135653,25/04/2013,10183329
Housing Revenue Account ,Lesley Souter House AP,AGP16,Electricity,0130,1367.10,Southern Electric,135653,25/04/2013,10183329
Housing Revenue Account ,Edward Court AP,AGP19,Electricity,0130,923.66,Southern Electric,135653,25/04/2013,10183329
Housing Revenue Account ,Albert Square AP,AGP20,Electricity,0130,-6.67,Southern Electric,135653,25/04/2013,10183329
Housing Revenue Account ,Clare Court Site,AGP27,Electricity,0130,74.92,Southern Electric,135653,25/04/2013,10183329
Housing Revenue Account ,Alexandra/James Court AP,AGP30,Electricity,0130,334.92,Southern Electric,135653,25/04/2013,10183329
Housing Revenue Account ,Brookside Pailton AP,AGP40,Electricity,0130,-108.99,Southern Electric,135653,25/04/2013,10183329
Housing Revenue Account ,Clifton Road AP,AGP41,Electricity,0130,70.27,Southern Electric,135653,25/04/2013,10183329
Housing Revenue Account ,Featherbed Lane I AP,AGP45,Electricity,0130,377.07,Southern Electric,135653,25/04/2013,10183329
Housing Revenue Account ,Jackson Road I AP,AGP53,Electricity,0130,73.95,Southern Electric,135653,25/04/2013,10183329
Housing Revenue Account ,Lever Road I AP,AGP57,Electricity,0130,733.86,Southern Electric,135653,25/04/2013,10183329
Housing Revenue Account ,The Kent AP,AGP67,Electricity,0130,160.37,Southern Electric,135653,25/04/2013,10183329
Housing Revenue Account ,Victoria Street/Lawford Road AP,AGP68,Electricity,0130,32.50,Southern Electric,135653,25/04/2013,10183329
Housing Revenue Account ,Pennington Street/Round Street AP,AGP72,Electricity,0130,531.55,Southern Electric,135653,25/04/2013,10183329
Housing Revenue Account ,Control Centre CCTV,CCE01,Electricity,0130,1912.97,Southern Electric,135653,25/04/2013,10183329
Housing Revenue Account ,Supervision and Management General,MAN00,Electricity,0130,157.70,Southern Electric,135653,25/04/2013,10183329
Housing Revenue Account ,Multi-Storey Flats,MSF00,Electricity,0130,8801.20,Southern Electric,135653,25/04/2013,10183329
Sustainable Inclusive Communities,Woodside Park,TVR00,Electricity,0130,11723.69,Southern Electric,135653,25/04/2013,10183329
Resources & Corporate Governance ,Benn Hall ICT,CMP24,IT Capital Expenditure,5025,901.00,Switchshop Limited,136328,04/04/2013,10182534
Resources & Corporate Governance ,IT Procurement,CMP00,IT Capital Expenditure,5025,5992.00,Switchshop Limited,136328,04/04/2013,10182535
Resources & Corporate Governance ,Council Tax and NNDR Collection,CTX01,External Legal Costs,0741,927.00,Summers Nigh Law,136330,25/04/2013,10183564
Resources & Corporate Governance ,Domestic Waste Collection,WWC00,Vehicle Repair and Maintenance,0200,1055.26,Heil Farid European Company Ltd,137390,25/04/2013,10183131
Resources & Corporate Governance,Central Business Support Services,CSS15,"Toners, cartridges and printer equipment",0311,455.72,Stanford Marsh,138178,11/04/2013,10182865
Resources & Corporate Governance,Other Elections,ELC01,Printing poll cards,0343,1272.53,Smith & Ouzman Ltd,138682,18/04/2013,10182776
Housing Revenue Account ,Unplanned Maintenance and Repair,UMR00,R&M External Contractors,0100,962.24,Regent Office Care Ltd T/A Regent Cleaning,138934,11/04/2013,10182857
Housing Revenue Account ,Sheltered Housing,AGP00,Contract Cleaning,0170,14297.47,Regent Office Care Ltd T/A Regent Cleaning,138934,18/04/2013,10183241
Sustainable Inclusive Communities,Housing Options Team,HOT00,Contract Cleaning,0170,134.76,Regent Office Care Ltd T/A Regent Cleaning,138934,18/04/2013,10183241
Housing Revenue Account ,Estate Management,MAN22,Contract Cleaning,0170,3078.90,Regent Office Care Ltd T/A Regent Cleaning,138934,18/04/2013,10183241
Housing Revenue Account ,Multi-Storey Flats,MSF00,Contract Cleaning,0170,1731.90,Regent Office Care Ltd T/A Regent Cleaning,138934,18/04/2013,10183241
Housing Revenue Account ,Unplanned Maintenance and Repair,UMR00,R&M External Contractors,0100,1384.39,Regent Office Care Ltd T/A Regent Cleaning,138934,18/04/2013,10183362
Housing Revenue Account ,Unplanned Maintenance and Repair,UMR00,R&M External Contractors,0100,439.82,Regent Office Care Ltd T/A Regent Cleaning,138934,18/04/2013,10183363
Economy Development & Culture,AGM Conservation/Documentation,AGM01,Other Miscellaneous Expenses,0444,895.00,Meaco Measurement and Control Ltd,138998,18/04/2013,10183233
Housing Revenue Account ,Asbestos Surveys,UMR05,R&M External Contractors,0100,18200.00,Rider Levett Bucknall UK Ltd,139918,11/04/2013,10182847
Capital Program ,Electric to Gas Conversions,HIM04,Capital Contract Payments,5000,390.00,Rider Levett Bucknall UK Ltd,139918,11/04/2013,10182847
Housing Revenue Account ,Asbestos Surveys,UMR05,R&M External Contractors,0100,3640.00,Rider Levett Bucknall UK Ltd,139918,18/04/2013,10183361
Capital Program ,Open Spaces Refurbishment,LEI08,Capital Contract Payments,5000,5025.00,D J Whitlock Plant Hire,140156,11/04/2013,10182005
Sustainable Environment ,Allotments,ALL00,R&M External Contractors,0100,460.00,D J Whitlock Plant Hire,140156,11/04/2013,10182796
Resources & Corporate Governance ,Grounds Maintenance,WGM00,External Contractor & Operator,0742,2900.00,D J Whitlock Plant Hire,140156,11/04/2013,10182799
Resources & Corporate Governance ,P11D software upgrade,CMP23,IT Capital Expenditure,5025,774.57,Midland Software Ltd,140463,04/04/2013,10182346
Resources & Corporate Governance ,Maintenance of Customer Services Systems,CIS21,Software Maintenance,0374,1250.00,Midland Software Ltd,140463,04/04/2013,10182480
Resources & Corporate Governance ,P11D software upgrade,CMP23,IT Capital Expenditure,5025,634.40,Midland Software Ltd,140463,11/04/2013,10183069
Housing Revenue Account ,Property Maintenance,MAN23,Training fees,0011,2000.00,Ascertiva Group Ltd,142076,04/04/2013,10182503
Capital Program ,Bathroom Modifications,HIS01,Capital Contract Payments,5000,-2145.00,Ian Williams Ltd,142238,11/04/2013,10182528
Capital Program ,Bathroom Modifications,HIS01,Capital Contract Payments,5000,3402.25,Ian Williams Ltd,142238,11/04/2013,10183193
Resources & Corporate Governance ,Garage Internal,WVR01,Materials,0303,596.52,FST,144461,11/04/2013,10182531
Resources & Corporate Governance ,General Financial Services,GFS00,Subscriptions,0421,9422.86,Local Government Association,144471,18/04/2013,10183321
Housing Revenue Account ,Control Centre CCTV,CCE01,External Contractor & Operator,0742,15928.66,Securitas Security Personnel Ltd,145079,04/04/2013,10182624
Capital Program ,Open Spaces Refurbishment,LEI08,Capital Contract Payments,5000,33170.00,Matta Products (UK),145081,04/04/2013,10182416
Sustainable Inclusive Communities,Housing Options Team,HOT00,Agency Staff,0003,594.86,James Andrews Recruitment Solutions Ltd,145100,11/04/2013,10182494
Sustainable Inclusive Communities,Housing Options Team,HOT00,Agency Staff,0003,615.38,James Andrews Recruitment Solutions Ltd,145100,11/04/2013,10182495
Housing Revenue Account ,Property Maintenance,MAN23,Agency Staff,0003,1218.00,James Andrews Recruitment Solutions Ltd,145100,04/04/2013,10182496
Housing Revenue Account ,Property Maintenance,MAN23,Agency Staff,0003,1073.00,James Andrews Recruitment Solutions Ltd,145100,04/04/2013,10182497
Housing Revenue Account ,Property Maintenance,MAN23,Agency Staff,0003,975.00,James Andrews Recruitment Solutions Ltd,145100,11/04/2013,10182811
Housing Revenue Account ,Property Maintenance,MAN23,Agency Staff,0003,780.00,James Andrews Recruitment Solutions Ltd,145100,11/04/2013,10182812
Housing Revenue Account ,Property Maintenance,MAN23,Agency Staff,0003,870.00,James Andrews Recruitment Solutions Ltd,145100,11/04/2013,10182814
Housing Revenue Account ,Property Maintenance,MAN23,Agency Staff,0003,1015.00,James Andrews Recruitment Solutions Ltd,145100,18/04/2013,10183351
Housing Revenue Account ,Property Maintenance,MAN23,Agency Staff,0003,957.00,James Andrews Recruitment Solutions Ltd,145100,18/04/2013,10183352
Housing Revenue Account ,Property Maintenance,MAN23,Agency Staff,0003,663.00,James Andrews Recruitment Solutions Ltd,145100,18/04/2013,10183353
Resources & Corporate Governance ,General Financial Services,GFS00,External Contractor & Operator,0742,1020.00,LAVAT Consulting Limited,145204,25/04/2013,10183821
Resources & Corporate Governance ,Street Cleansing,WSC00,Agency Staff,0003,397.04,Blue Arrow Limited,145492,11/04/2013,10182881
Resources & Corporate Governance ,Domestic Waste Collection,WWC00,Agency Staff,0003,342.14,Blue Arrow Limited,145492,11/04/2013,10182881
Resources & Corporate Governance ,Trade Waste Collection,WWC01,Agency Staff,0003,288.34,Blue Arrow Limited,145492,11/04/2013,10182881
Resources & Corporate Governance ,Street Cleansing,WSC00,Agency Staff,0003,250.95,Blue Arrow Limited,145492,11/04/2013,10183122
Resources & Corporate Governance ,Domestic Waste Collection,WWC00,Agency Staff,0003,1297.59,Blue Arrow Limited,145492,11/04/2013,10183122
Resources & Corporate Governance ,Street Cleansing,WSC00,Agency Staff,0003,175.95,Blue Arrow Limited,145492,11/04/2013,10183123
Resources & Corporate Governance ,Domestic Waste Collection,WWC00,Agency Staff,0003,429.76,Blue Arrow Limited,145492,11/04/2013,10183123
Resources & Corporate Governance ,Trade Waste Collection,WWC01,Agency Staff,0003,499.05,Blue Arrow Limited,145492,11/04/2013,10183123
Resources & Corporate Governance ,Street Cleansing,WSC00,Agency Staff,0003,595.90,Blue Arrow Limited,145492,18/04/2013,10183443
Resources & Corporate Governance ,Domestic Waste Collection,WWC00,Agency Staff,0003,334.71,Blue Arrow Limited,145492,18/04/2013,10183443
Resources & Corporate Governance ,Trade Waste Collection,WWC01,Agency Staff,0003,743.52,Blue Arrow Limited,145492,18/04/2013,10183443
Resources & Corporate Governance ,Street Cleansing,WSC00,Agency Staff,0003,1274.65,Blue Arrow Limited,145492,25/04/2013,10183811
Resources & Corporate Governance ,Domestic Waste Collection,WWC00,Agency Staff,0003,460.40,Blue Arrow Limited,145492,25/04/2013,10183811
Capital Program ,Vehicle Workshop Extension,VWE00,Capital Contract Payments,5000,39278.25,Three Counties Steel Buildings Limited,145562,18/04/2013,10183454
Capital Program ,Open Spaces Refurbishment,LEI08,Capital Contract Payments,5000,2812.50,Nortoft Partnerships Ltd,145573,25/04/2013,10183630
Resources & Corporate Governance ,Safety and Resilience,EPL00,Other Miscellaneous Expenses,0444,890.45,AST Connections Ltd,145592,11/04/2013,10182860
Capital Program ,Disabled Facilities Grant,REN01,Capital Grants,5014,4490.00,Inhouse Renovations,145963,25/04/2013,10183555
Housing Revenue Account ,Unplanned Maintenance and Repair,UMR00,R&M External Contractors,0100,525.00,The Rugby Bodyshoppe,146033,25/04/2013,10182817
Resources & Corporate Governance ,Council Tax and NNDR Collection,CTX01,External Printing,0352,1850.00,PSC Systems Ltd,146087,11/04/2013,10183208
Resources & Corporate Governance ,Council Tax and NNDR Collection,CTX01,Postage & Distribution,0370,1704.62,PSC Systems Ltd,146087,11/04/2013,10183208
Resources & Corporate Governance ,Council Tax and NNDR Collection,CTX01,Stationery Supplies,0350,1163.40,PSC Systems Ltd,146087,11/04/2013,10183209
Resources & Corporate Governance ,Council Tax and NNDR Collection,CTX01,Stationery Supplies,0350,3382.99,PSC Systems Ltd,146087,18/04/2013,10183348
Resources & Corporate Governance ,Council Tax and NNDR Collection,CTX01,Postage & Distribution,0370,6700.00,PSC Systems Ltd,146087,18/04/2013,10183348
Resources & Corporate Governance,Corporate Property R&M,CPA01,R&M External Contractors,0100,471.80,Stanair Industrial Services Ltd,146499,04/04/2013,10182694
,Balance Sheet,BS,Insurance Recoverable,9232,100.00,Just Car Clinics Ltd,146586,04/04/2013,10182126
Resources & Corporate Governance ,Street Cleansing,WSC00,Vehicle Repair and Maintenance,0200,2675.00,RT Sweeper Services Ltd,146604,18/04/2013,10183114
Resources & Corporate Governance ,WSU Depot,WDP00,Telephone Expenses,0371,4420.33,Virgin Media Business Ltd,146605,04/04/2013,10181482
Carbon Management Plan,Carbon Management Plan,LCF01,Capital Contract Payments,5000,23257.90,Ecolight,146781,11/04/2013,10182767
Resources & Corporate Governance ,Grounds Maintenance,WGM00,Agency Staff,0003,434.80,Fresh Recruitment Solutions (FRS) Ltd,146784,04/04/2013,10182558
Resources & Corporate Governance ,Domestic Waste Collection,WWC00,Agency Staff,0003,490.11,Fresh Recruitment Solutions (FRS) Ltd,146784,11/04/2013,10182925
Resources & Corporate Governance ,Domestic Waste Collection,WWC00,Agency Staff,0003,164.01,Fresh Recruitment Solutions (FRS) Ltd,146784,11/04/2013,10182927
Resources & Corporate Governance ,Trade Waste Collection,WWC01,Agency Staff,0003,391.32,Fresh Recruitment Solutions (FRS) Ltd,146784,11/04/2013,10182927
Resources & Corporate Governance ,Domestic Waste Collection,WWC00,Agency Staff,0003,503.90,Fresh Recruitment Solutions (FRS) Ltd,146784,18/04/2013,10183411
Resources & Corporate Governance ,Domestic Waste Collection,WWC00,Agency Staff,0003,503.90,Fresh Recruitment Solutions (FRS) Ltd,146784,18/04/2013,10183414
Resources & Corporate Governance ,Trade Waste Collection,WWC01,Agency Staff,0003,489.15,Fresh Recruitment Solutions (FRS) Ltd,146784,25/04/2013,10183628
Sustainable Environment,Regulatory Services,REG00,Training fees,0011,1600.00,Mallard Consultancy Ltd,146807,04/04/2013,10182469
Resources & Corporate Governance ,Retired Employees,RET00,Additional Pension Payments,0014,22895.92,WCC Pension Fund,146914,04/04/2013,10182306
Economy Development & Culture,Building Control Services,BCS00,Postage & Distribution,0370,4.93,TNT Post Midlands Ltd,146983,04/04/2013,10181703
Economy Development & Culture,Building Regulation Fee Earning Account,BCS99,Postage & Distribution,0370,6.53,TNT Post Midlands Ltd,146983,04/04/2013,10181703
Resources & Corporate Governance,Central Business Support Services,CSS15,Postage & Distribution,0370,170.84,TNT Post Midlands Ltd,146983,04/04/2013,10181703
Resources & Corporate Governance ,Council Tax and NNDR Collection,CTX01,Postage & Distribution,0370,351.36,TNT Post Midlands Ltd,146983,04/04/2013,10181703
Resources & Corporate Governance ,Electoral Registration,ERG00,Postage & Distribution,0370,260.98,TNT Post Midlands Ltd,146983,04/04/2013,10181703
Sustainable Inclusive Communities,Housing Benefit Administration,HBA00,Postage & Distribution,0370,85.74,TNT Post Midlands Ltd,146983,04/04/2013,10181703
Housing Revenue Account ,Supervision and Management General,MAN00,Postage & Distribution,0370,21.15,TNT Post Midlands Ltd,146983,04/04/2013,10181703
Economy Development & Culture,Visitor Centre,VSC00,Postage & Distribution,0370,13.03,TNT Post Midlands Ltd,146983,04/04/2013,10181703
Resources & Corporate Governance ,General Administration,WAD00,Postage & Distribution,0370,5.79,TNT Post Midlands Ltd,146983,04/04/2013,10181703
Economy Development & Culture,Art Gallery and Museum,AGM00,Postage & Distribution,0370,8.12,TNT Post Midlands Ltd,146983,11/04/2013,10182456
Economy Development & Culture,Building Control Services,BCS00,Postage & Distribution,0370,8.77,TNT Post Midlands Ltd,146983,11/04/2013,10182456
Economy Development & Culture,Building Regulation Fee Earning Account,BCS99,Postage & Distribution,0370,11.62,TNT Post Midlands Ltd,146983,11/04/2013,10182456
Resources & Corporate Governance,Central Business Support Services,CSS15,Postage & Distribution,0370,54.88,TNT Post Midlands Ltd,146983,11/04/2013,10182456
Resources & Corporate Governance ,Council Tax and NNDR Collection,CTX01,Postage & Distribution,0370,1041.51,TNT Post Midlands Ltd,146983,11/04/2013,10182456
Resources & Corporate Governance ,Electoral Registration,ERG00,Postage & Distribution,0370,70.72,TNT Post Midlands Ltd,146983,11/04/2013,10182456
Sustainable Inclusive Communities,Housing Benefit Administration,HBA00,Postage & Distribution,0370,221.86,TNT Post Midlands Ltd,146983,11/04/2013,10182456
Housing Revenue Account ,Supervision and Management General,MAN00,Postage & Distribution,0370,76.25,TNT Post Midlands Ltd,146983,11/04/2013,10182456
Resources & Corporate Governance ,General Administration,WAD00,Postage & Distribution,0370,3.48,TNT Post Midlands Ltd,146983,11/04/2013,10182456
Economy Development & Culture,Building Control Services,BCS00,Postage & Distribution,0370,8.02,TNT Post Midlands Ltd,146983,11/04/2013,10182457
Economy Development & Culture,Building Regulation Fee Earning Account,BCS99,Postage & Distribution,0370,10.63,TNT Post Midlands Ltd,146983,11/04/2013,10182457
Resources & Corporate Governance,Central Business Support Services,CSS15,Postage & Distribution,0370,80.43,TNT Post Midlands Ltd,146983,11/04/2013,10182457
Resources & Corporate Governance ,Council Tax and NNDR Collection,CTX01,Postage & Distribution,0370,955.66,TNT Post Midlands Ltd,146983,11/04/2013,10182457
Resources & Corporate Governance ,Electoral Registration,ERG00,Postage & Distribution,0370,0.28,TNT Post Midlands Ltd,146983,11/04/2013,10182457
Sustainable Inclusive Communities,Housing Benefit Administration,HBA00,Postage & Distribution,0370,1843.48,TNT Post Midlands Ltd,146983,11/04/2013,10182457
Housing Revenue Account ,Supervision and Management General,MAN00,Postage & Distribution,0370,43.25,TNT Post Midlands Ltd,146983,11/04/2013,10182457
Economy Development & Culture,Visitor Centre,VSC00,Postage & Distribution,0370,14.98,TNT Post Midlands Ltd,146983,11/04/2013,10182457
Resources & Corporate Governance ,General Administration,WAD00,Postage & Distribution,0370,2.26,TNT Post Midlands Ltd,146983,11/04/2013,10182457
Economy Development & Culture,Art Gallery and Museum,AGM00,Postage & Distribution,0370,0.78,TNT Post Midlands Ltd,146983,18/04/2013,10182931
Economy Development & Culture,Building Control Services,BCS00,Postage & Distribution,0370,0.75,TNT Post Midlands Ltd,146983,18/04/2013,10182931
Economy Development & Culture,Building Control Services Non-Fee Earning Account,BCS01,Postage & Distribution,0370,0.75,TNT Post Midlands Ltd,146983,18/04/2013,10182931
Economy Development & Culture,Building Regulation Fee Earning Account,BCS99,Postage & Distribution,0370,13.59,TNT Post Midlands Ltd,146983,18/04/2013,10182931
Resources & Corporate Governance,Central Business Support Services,CSS15,Postage & Distribution,0370,69.44,TNT Post Midlands Ltd,146983,18/04/2013,10182931
Resources & Corporate Governance ,Council Tax and NNDR Collection,CTX01,Postage & Distribution,0370,226.64,TNT Post Midlands Ltd,146983,18/04/2013,10182931
Resources & Corporate Governance ,Electoral Registration,ERG00,Postage & Distribution,0370,5.61,TNT Post Midlands Ltd,146983,18/04/2013,10182931
Sustainable Inclusive Communities,Housing Benefit Administration,HBA00,Postage & Distribution,0370,171.58,TNT Post Midlands Ltd,146983,18/04/2013,10182931
Housing Revenue Account ,Supervision and Management General,MAN00,Postage & Distribution,0370,51.35,TNT Post Midlands Ltd,146983,18/04/2013,10182931
Economy Development & Culture,Visitor Centre,VSC00,Postage & Distribution,0370,1.18,TNT Post Midlands Ltd,146983,18/04/2013,10182931
Resources & Corporate Governance ,General Administration,WAD00,Postage & Distribution,0370,10.62,TNT Post Midlands Ltd,146983,18/04/2013,10182931
Capital Program ,Corporate Property Enhancements,CPE00,Capital Contract Payments,5000,51431.75,General Asphalte Company,147047,11/04/2013,10182768
Housing Revenue Account ,Repainting Schemes,UMR02,R&M External Contractors,0100,2746.69,Bell Decorating Group Ltd,147075,11/04/2013,10182853
Housing Revenue Account ,Gas Heating Systems,UMR01,R&M External Contractors,0100,24347.01,Integral UK Ltd,147080,04/04/2013,10182458
Housing Revenue Account ,Unplanned Maintenance and Repair,UMR00,R&M External Contractors,0100,5523.69,Integral UK Ltd,147080,11/04/2013,10183143
Housing Revenue Account ,Gas Heating Systems,UMR01,R&M External Contractors,0100,55.00,Integral UK Ltd,147080,11/04/2013,10183143
Housing Revenue Account ,Gas Heating Systems,UMR01,R&M External Contractors,0100,9862.08,Integral UK Ltd,147080,25/04/2013,10183553
Capital Program ,Disabled Adaptations,HCR01,Capital Contract Payments,5000,16415.83,Intelligent Disabled Solutions Ltd,147081,25/04/2013,10183602
Capital Program ,Queen's Diamond Jubilee Leisure Centre Project,LEI03,Capital Contract Payments,5000,3500.00,B3 Architects,147190,04/04/2013,10182517
Resources & Corporate Governance,Handy man,WHM00,External Contractor & Operator,0742,2994.69,C H Electrical (Leics) Ltd,147209,04/04/2013,10182633
Resources & Corporate Governance,Handy man,WHM00,External Contractor & Operator,0742,620.00,C H Electrical (Leics) Ltd,147209,18/04/2013,10183228
Resources & Corporate Governance,Corporate Property R&M,CPA01,R&M External Contractors,0100,418.00,AirTech Controls Ltd,147262,11/04/2013,10182863
Resources & Corporate Governance,Handy man,WHM00,Tools,0304,1259.55,ECA Supplies (Coventry) Limited,147276,11/04/2013,10182922
Resources & Corporate Governance,Handy man,WHM00,External Contractor & Operator,0742,2241.65,Stewart Groom Flooring,147316,25/04/2013,10183741
Resources & Corporate Governance ,Domestic Waste Collection,WWC00,Contract Hire,0220,975.00,Trash UK Limited,147379,04/04/2013,10182408
Resources & Corporate Governance ,Domestic Waste Collection,WWC00,Contract Hire,0220,1800.00,Trash UK Limited,147379,18/04/2013,10183396
Resources & Corporate Governance,Corporate Property R&M,CPA01,R&M External Contractors,0100,650.00,Arden Construction Ltd,147430,04/04/2013,10182645
Resources & Corporate Governance,Corporate Property R&M,CPA01,R&M External Contractors,0100,4825.90,Arden Construction Ltd,147430,04/04/2013,10182650
Capital Program ,Cemetery Infrastructure Work,BUR05,Capital Contract Payments,5000,6800.00,Arden Construction Ltd,147430,04/04/2013,10182654
Resources & Corporate Governance,Corporate Property R&M,CPA01,R&M External Contractors,0100,4600.00,Arden Construction Ltd,147430,04/04/2013,10182657
Resources & Corporate Governance,Corporate Property R&M,CPA01,R&M External Contractors,0100,4290.00,Arden Construction Ltd,147430,04/04/2013,10182659
Resources & Corporate Governance ,Domestic Waste Collection,WWC00,Vehicle Running Costs,0201,6720.00,On Site Industrial Limited,147513,26/04/2013,10182556
Resources & Corporate Governance ,Domestic Waste Collection,WWC00,Vehicle Running Costs,0201,6720.00,On Site Industrial Limited,147513,11/04/2013,10182802
Capital Program ,Disabled Facilities Grant,REN01,Capital Grants,5014,875.00,Pollards Property Solution,147541,25/04/2013,10183541
Sustainable Environment ,Caldecott Park/Town Centre Area,PKS00,Maintenance of Equipment,0301,2499.00,Gavin Jones (Midlands) Ltd,147569,12/04/2013,10183225
Capital Program ,Purchase of Vehicles,VHC00,Miscellaneous Capital Expenditure,5020,19109.74,Chris Tallis Farm Machinery Limited,147758,04/04/2013,10182429
Capital Program ,Great Central Walk Bridge,LEI14,Capital Contract Payments,5000,10934.67,Currall Lewis & Martin (Construction) Ltd,147769,04/04/2013,10182498
Capital Program ,Great Central Walk Bridge,LEI14,Capital Contract Payments,5000,24807.90,Currall Lewis & Martin (Construction) Ltd,147769,04/04/2013,10182499
Economy Development & Culture,The Benn Hall,BHL00,Subscriptions,0421,804.74,PRS For Music,147770,11/04/2013,10182824
Resources & Corporate Governance ,"Communications, Consultation and Information Team",BTR20,Publicity & Marketing,0377,7500.00,Cole Creative Communications Ltd,147857,11/04/2013,10183060
Resources & Corporate Governance ,"Communications, Consultation and Information Team",BTR20,Publicity & Marketing,0377,4500.00,Cole Creative Communications Ltd,147857,11/04/2013,10183061
Resources & Corporate Governance ,"Communications, Consultation and Information Team",BTR20,Publicity & Marketing,0377,3150.00,Cole Creative Communications Ltd,147857,11/04/2013,10183062
Resources & Corporate Governance ,WSU Depot,WDP00,Messing Facilities,0332,4815.00,Cole Creative Communications Ltd,147857,11/04/2013,10183119
Resources & Corporate Governance ,"Communications, Consultation and Information Team",BTR20,Publicity & Marketing,0377,2425.00,Cole Creative Communications Ltd,147857,18/04/2013,10183451
Resources & Corporate Governance ,"Communications, Consultation and Information Team",BTR20,Publicity & Marketing,0377,2017.00,Cole Creative Communications Ltd,147857,18/04/2013,10183453
Resources & Corporate Governance ,"Communications, Consultation and Information Team",BTR20,Publicity & Marketing,0377,3885.00,Cole Creative Communications Ltd,147857,25/04/2013,10183901
Resources & Corporate Governance ,"Communications, Consultation and Information Team",BTR20,Consultation,0378,4338.00,Cole Creative Communications Ltd,147857,25/04/2013,10183902
Resources & Corporate Governance ,Street Cleansing,WSC00,Agency Staff,0003,501.39,3b2 Recruitment Ltd T/A Darren Bell Recruitment,147938,25/04/2013,10183591
Resources & Corporate Governance ,Highways,WHG00,External Contractor & Operator,0742,19985.00,G & S Transport & Construction Ltd,147995,04/04/2013,10182715
Capital Program ,Queen's Diamond Jubilee Leisure Centre Project,LEI03,Capital Contract Payments,5000,654305.73,Shepherd Construction Ltd,148014,11/04/2013,10182963
Resources & Corporate Governance,Handy man,WHM00,External Contractor & Operator,0742,570.00,Dean Hudson,148035,04/04/2013,10182638
Economy Development & Culture,The Benn Hall,BHL00,Employee wellbeing/Other employee expenses,0021,37.45,Team Prevent UK Ltd,148151,04/04/2013,10182345
Housing Revenue Account ,Control Centre (HRA),CCE00,Employee wellbeing/Other employee expenses,0021,40.00,Team Prevent UK Ltd,148151,04/04/2013,10182345
Resources & Corporate Governance,Corporate Property Administration,CPA00,Employee wellbeing/Other employee expenses,0021,40.00,Team Prevent UK Ltd,148151,04/04/2013,10182345
Economy Development & Culture,Car Parks General,CPK01,Employee wellbeing/Other employee expenses,0021,21.00,Team Prevent UK Ltd,148151,04/04/2013,10182345
Resources & Corporate Governance,Customer Support Services,CSS00,Employee wellbeing/Other employee expenses,0021,80.00,Team Prevent UK Ltd,148151,04/04/2013,10182345
Economy Development & Culture,Decrim. of Car Parking on street parking,DPE02,Employee wellbeing/Other employee expenses,0021,84.00,Team Prevent UK Ltd,148151,04/04/2013,10182345
Economy Development & Culture,Economic Development General,ECD00,Employee wellbeing/Other employee expenses,0021,140.00,Team Prevent UK Ltd,148151,04/04/2013,10182345
Housing Revenue Account ,Property Maintenance,MAN23,Employee wellbeing/Other employee expenses,0021,85.00,Team Prevent UK Ltd,148151,04/04/2013,10182345
Economy Development & Culture,Planning Control,PLN01,Employee wellbeing/Other employee expenses,0021,59.00,Team Prevent UK Ltd,148151,04/04/2013,10182345
Resources & Corporate Governance ,Grounds Maintenance,WGM00,Employee wellbeing/Other employee expenses,0021,200.00,Team Prevent UK Ltd,148151,04/04/2013,10182345
Resources & Corporate Governance,Handy man,WHM00,Employee wellbeing/Other employee expenses,0021,40.00,Team Prevent UK Ltd,148151,04/04/2013,10182345
Resources & Corporate Governance ,Street Cleansing,WSC00,Employee wellbeing/Other employee expenses,0021,170.00,Team Prevent UK Ltd,148151,04/04/2013,10182345
Resources & Corporate Governance ,Garage,WVR00,Employee wellbeing/Other employee expenses,0021,150.00,Team Prevent UK Ltd,148151,04/04/2013,10182345
Resources & Corporate Governance ,Domestic Waste Collection,WWC00,Employee wellbeing/Other employee expenses,0021,85.00,Team Prevent UK Ltd,148151,04/04/2013,10182345
,Balance Sheet,BS,Car Salary Sacrifice,9243,1989.81,Fleethire Ltd,148197,18/04/2013,10183324
Resources & Corporate Governance ,Highways,WHG00,Tools,0304,425.00,Brown Power Engineering Ltd,148262,18/04/2013,10183204
Resources & Corporate Governance,Customer Support Services,CSS00,New Equipment,0300,417.31,Probrand Limited,148276,18/04/2013,10183447
Resources & Corporate Governance ,WSU Depot,WDP00,Messing Facilities,0332,4633.00,Reactec Ltd,148291,11/04/2013,10182682
Resources & Corporate Governance ,TREE WORKS,WGM01,Vehicle Repair and Maintenance,0200,3808.56,Vermeer UK,148325,18/04/2013,10183205
Resources & Corporate Governance ,Street Cleansing,WSC00,Vehicle Repair and Maintenance,0200,1181.53,Clemas & Co Ltd,148440,11/04/2013,10183124
Capital Program ,Open Spaces Refurbishment,LEI08,Capital Contract Payments,5000,10080.80,J P Landscapes & Construction Ltd,148502,04/04/2013,10182316
Sustainable Environment ,Caldecott Park/Town Centre Area,PKS00,External Contractor & Operator,0742,3181.30,J P Landscapes & Construction Ltd,148502,04/04/2013,10182412
Resources & Corporate Governance,Handy man,WHM00,External Contractor & Operator,0742,750.00,Garforth Scaffolding Ltd,148530,11/04/2013,10182617
Capital Program ,Capital Partnership Fund,CGR01,Capital Grants,5014,5525.86,Rugby Foodbank,148531,04/04/2013,10182349
Resources & Corporate Governance ,IT Procurement,CMP00,IT Capital Expenditure,5025,12931.28,Intrinsic Technology Ltd,148620,18/04/2013,10179365
Resources & Corporate Governance ,IT Procurement,CMP00,IT Capital Expenditure,5025,1700.00,Intrinsic Technology Ltd,148620,04/04/2013,10181731
Resources & Corporate Governance ,Garage Internal,WVR01,Agency Staff,0003,783.20,Proactive Personnel Ltd,148724,04/04/2013,10182417
Resources & Corporate Governance ,Garage Internal,WVR01,Agency Staff,0003,783.20,Proactive Personnel Ltd,148724,04/04/2013,10182436
Resources & Corporate Governance ,Garage Internal,WVR01,Agency Staff,0003,783.20,Proactive Personnel Ltd,148724,04/04/2013,10182712
Resources & Corporate Governance ,Garage Internal,WVR01,Agency Staff,0003,598.40,Proactive Personnel Ltd,148724,11/04/2013,10183084
Resources & Corporate Governance ,Garage Internal,WVR01,Agency Staff,0003,633.60,Proactive Personnel Ltd,148724,18/04/2013,10183438
Resources & Corporate Governance ,Garage Internal,WVR01,Agency Staff,0003,783.20,Proactive Personnel Ltd,148724,25/04/2013,10183812
Resources & Corporate Governance ,Customer and Information Strategy,CIS10,Hardware Maintenance,0376,2118.64,CCS Media Ltd,148725,04/04/2013,10182664
Economy Development & Culture,Visitor Centre,VSC00,Purchases for Resale,0305,483.24,British Fossils,148749,18/04/2013,10183446
Resources & Corporate Governance ,Benn Hall ICT,CMP24,IT Capital Expenditure,5025,2386.00,Sapphire Network Services Ltd,148862,04/04/2013,10182544
Resources & Corporate Governance ,Safety and Resilience,EPL00,New Equipment,0300,4490.00,AED Locator (E.U.) Ltd,148875,18/04/2013,10182539
Resources & Corporate Governance ,Safety and Resilience,EPL00,New Equipment,0300,192.28,Aspli Safety Ltd,148876,18/04/2013,10182688
Resources & Corporate Governance ,Safety and Resilience,EPL00,Materials,0303,1429.69,Aspli Safety Ltd,148876,18/04/2013,10182688
Economy Development & Culture,Economic Development General,ECD00,Borough Local Plan,0452,2849.36,LUC,148877,25/04/2013,10182575
Sustainable Environment ,Grass Cutting,PKS13,External Contractor & Operator,0742,2068.00,Shilton & Barnacle Parish Council,148879,25/04/2013,10183841
Capital Program ,Queen's Diamond Jubilee Leisure Centre Project,LEI03,Capital Contract Payments,5000,425.00,Ward Cole Ltd,148884,04/04/2013,10182482
Economy Development & Culture,Planning General/Income,PLN00,Fees & Charges - Outside Scope,1403,670.00,Rugby High School Academy Trust,148885,04/04/2013,10182523
Resources & Corporate Governance ,Safety and Resilience,EPL00,New Equipment,0300,750.00,S G Baker Ltd,148888,18/04/2013,10183203
Sustainable Environment ,Head of Environmental Services,ENV00,Training fees,0011,2400.00,Community Safety Professionals Ltd,148890,11/04/2013,10182612
Sustainable Environment ,Head of Environmental Services,ENV00,Other Miscellaneous Expenses,0444,180.00,Community Safety Professionals Ltd,148890,11/04/2013,10182612
Resources & Corporate Governance,Corporate Property R&M,CPA01,R&M External Contractors,0100,1450.00,GSJ Brockway,148892,18/04/2013,10183429
Housing Revenue Account ,Supervision and Management General,MAN00,Movement Incentives,0454,500.00,REDACTED PERSONAL DTA,148909,11/04/2013,10183158
Resources & Corporate Governance ,Human Resources Centralised Services,RES31,Training fees,0011,990.00,Mr AEC Manners & Mrs JA Manners t/a 680,148917,18/04/2013,10183231
Resources & Corporate Governance ,Grounds Maintenance,WGM00,Materials,0303,418.83,Belron UK Ltd,148935,18/04/2013,10183556
Economy Development & Culture,AGM Exhibitions/Outreach,AGM02,Other Miscellaneous Expenses,0444,1624.00,Pip Dickens,148938,25/04/2013,10183615
,Balance Sheet,BS,Contributions To NNDR Pool,9476,1059163.00,Department for Communities & Local Govt,28066,30/04/2013,
,Balance Sheet,BS,Q4 12/13 Housing Pooling Payment,9820,86614.34,Department for Communities & Local Govt,28068,30/04/2013,
Resources & Corporate Governance ,General Financial Services,GFS00,Payment Card Costs,0444,718.28,Capita,28013,25/04/2013,
Resources & Corporate Governance ,Revenue Services,HBP00,Housing Benefit Payment,0760,3243.86,Cadman Homes Ltd,27971,17/04/2013,
,Balance Sheet,BS,Business Rate Retention Scheme payment,9476,323552.00,WCC County Fund,28069,30/04/2013,
Sustainable Enironment,Caldecott Park Caf� & Benn Hall,WGM02,Purchases for Resale,0303,1003.09,Booker Ltd,28127,30/04/2013,
